{"text_format":"3","workbook":"xlsx","n_sheets":4,"sheets":["BUDGETOVERZICHT TM VANDAAG","OVERZICHT MAANDELIJKSE ONKOSTEN","GESPECIFICEERDE KOSTEN","LIEFDADIGHEID EN SPONSORS"],"not_rendered":{"defined_names":15},"read":"whole","date_system":"1900"}

{"sheet":"BUDGETOVERZICHT TM VANDAAG","index":0,"n_rows":17,"n_cols":7,"rows_kept":17,"merged":[[1,1,1,4]]}
[null,"OVERZICHT MAANDELIJKSE ONKOSTEN"]
[null,"WERKELIJK VS. BUDGET JAAR TOT OP HEDEN",{"$nulls":3},"jaar",{"$f":"YEAR(TODAY())","v":2019}]
[]
[null,"G/L-code","Accounttitel","Werkelijk","Budget","Resterende €","Resterende %"]
[null,1000,"Reclame",{"$f":"SUMIF(OverzichtMaandelijkseOnkosten[G/L-code],YearToDateTable[[#This Row],[G/L-code]],OverzichtMaandelijkseOnkosten[Totaal])","v":{"v":0,"d":"€ 0.00"}},{"v":100000,"d":"€ 100,000.00"},{"$f":"IF(YearToDateTable[[#This Row],[Budget]]=\"\",\"\",YearToDateTable[[#This Row],[Budget]]-YearToDateTable[[#This Row],[Werkelijk]])","v":{"v":100000,"d":"€ 100,000.00"}},{"$f":"IFERROR(YearToDateTable[[#This Row],[Resterende €]]/YearToDateTable[[#This Row],[Budget]],\"\")","v":{"v":1,"d":"100.00%"}}]
[null,2000,"Kantoorapparatuur",{"$f":"SUMIF(OverzichtMaandelijkseOnkosten[G/L-code],YearToDateTable[[#This Row],[G/L-code]],OverzichtMaandelijkseOnkosten[Totaal])","v":{"v":0,"d":"€ 0.00"}},{"v":100000,"d":"€ 100,000.00"},{"$f":"IF(YearToDateTable[[#This Row],[Budget]]=\"\",\"\",YearToDateTable[[#This Row],[Budget]]-YearToDateTable[[#This Row],[Werkelijk]])","v":{"v":100000,"d":"€ 100,000.00"}},{"$f":"IFERROR(YearToDateTable[[#This Row],[Resterende €]]/YearToDateTable[[#This Row],[Budget]],\"\")","v":{"v":1,"d":"100.00%"}}]
[null,3000,"Printers",{"$f":"SUMIF(OverzichtMaandelijkseOnkosten[G/L-code],YearToDateTable[[#This Row],[G/L-code]],OverzichtMaandelijkseOnkosten[Totaal])","v":{"v":0,"d":"€ 0.00"}},{"v":100000,"d":"€ 100,000.00"},{"$f":"IF(YearToDateTable[[#This Row],[Budget]]=\"\",\"\",YearToDateTable[[#This Row],[Budget]]-YearToDateTable[[#This Row],[Werkelijk]])","v":{"v":100000,"d":"€ 100,000.00"}},{"$f":"IFERROR(YearToDateTable[[#This Row],[Resterende €]]/YearToDateTable[[#This Row],[Budget]],\"\")","v":{"v":1,"d":"100.00%"}}]
[null,4000,"Serverkosten",{"$f":"SUMIF(OverzichtMaandelijkseOnkosten[G/L-code],YearToDateTable[[#This Row],[G/L-code]],OverzichtMaandelijkseOnkosten[Totaal])","v":{"v":0,"d":"€ 0.00"}},{"v":100000,"d":"€ 100,000.00"},{"$f":"IF(YearToDateTable[[#This Row],[Budget]]=\"\",\"\",YearToDateTable[[#This Row],[Budget]]-YearToDateTable[[#This Row],[Werkelijk]])","v":{"v":100000,"d":"€ 100,000.00"}},{"$f":"IFERROR(YearToDateTable[[#This Row],[Resterende €]]/YearToDateTable[[#This Row],[Budget]],\"\")","v":{"v":1,"d":"100.00%"}}]
[null,5000,"Benodigdheden",{"$f":"SUMIF(OverzichtMaandelijkseOnkosten[G/L-code],YearToDateTable[[#This Row],[G/L-code]],OverzichtMaandelijkseOnkosten[Totaal])","v":{"v":0,"d":"€ 0.00"}},{"v":50000,"d":"€ 50,000.00"},{"$f":"IF(YearToDateTable[[#This Row],[Budget]]=\"\",\"\",YearToDateTable[[#This Row],[Budget]]-YearToDateTable[[#This Row],[Werkelijk]])","v":{"v":50000,"d":"€ 50,000.00"}},{"$f":"IFERROR(YearToDateTable[[#This Row],[Resterende €]]/YearToDateTable[[#This Row],[Budget]],\"\")","v":{"v":1,"d":"100.00%"}}]
[null,6000,"Klantuitgaven",{"$f":"SUMIF(OverzichtMaandelijkseOnkosten[G/L-code],YearToDateTable[[#This Row],[G/L-code]],OverzichtMaandelijkseOnkosten[Totaal])","v":{"v":0,"d":"€ 0.00"}},{"v":25000,"d":"€ 25,000.00"},{"$f":"IF(YearToDateTable[[#This Row],[Budget]]=\"\",\"\",YearToDateTable[[#This Row],[Budget]]-YearToDateTable[[#This Row],[Werkelijk]])","v":{"v":25000,"d":"€ 25,000.00"}},{"$f":"IFERROR(YearToDateTable[[#This Row],[Resterende €]]/YearToDateTable[[#This Row],[Budget]],\"\")","v":{"v":1,"d":"100.00%"}}]
[null,7000,"Computers",{"$f":"SUMIF(OverzichtMaandelijkseOnkosten[G/L-code],YearToDateTable[[#This Row],[G/L-code]],OverzichtMaandelijkseOnkosten[Totaal])","v":{"v":0,"d":"€ 0.00"}},{"v":75000,"d":"€ 75,000.00"},{"$f":"IF(YearToDateTable[[#This Row],[Budget]]=\"\",\"\",YearToDateTable[[#This Row],[Budget]]-YearToDateTable[[#This Row],[Werkelijk]])","v":{"v":75000,"d":"€ 75,000.00"}},{"$f":"IFERROR(YearToDateTable[[#This Row],[Resterende €]]/YearToDateTable[[#This Row],[Budget]],\"\")","v":{"v":1,"d":"100.00%"}}]
[null,8000,"Medisch zorgregeling",{"$f":"SUMIF(OverzichtMaandelijkseOnkosten[G/L-code],YearToDateTable[[#This Row],[G/L-code]],OverzichtMaandelijkseOnkosten[Totaal])","v":{"v":0,"d":"€ 0.00"}},{"v":65000,"d":"€ 65,000.00"},{"$f":"IF(YearToDateTable[[#This Row],[Budget]]=\"\",\"\",YearToDateTable[[#This Row],[Budget]]-YearToDateTable[[#This Row],[Werkelijk]])","v":{"v":65000,"d":"€ 65,000.00"}},{"$f":"IFERROR(YearToDateTable[[#This Row],[Resterende €]]/YearToDateTable[[#This Row],[Budget]],\"\")","v":{"v":1,"d":"100.00%"}}]
[null,9000,"Bouwkosten",{"$f":"SUMIF(OverzichtMaandelijkseOnkosten[G/L-code],YearToDateTable[[#This Row],[G/L-code]],OverzichtMaandelijkseOnkosten[Totaal])","v":{"v":0,"d":"€ 0.00"}},{"v":125000,"d":"€ 125,000.00"},{"$f":"IF(YearToDateTable[[#This Row],[Budget]]=\"\",\"\",YearToDateTable[[#This Row],[Budget]]-YearToDateTable[[#This Row],[Werkelijk]])","v":{"v":125000,"d":"€ 125,000.00"}},{"$f":"IFERROR(YearToDateTable[[#This Row],[Resterende €]]/YearToDateTable[[#This Row],[Budget]],\"\")","v":{"v":1,"d":"100.00%"}}]
[null,10000,"Marketing",{"$f":"SUMIF(OverzichtMaandelijkseOnkosten[G/L-code],YearToDateTable[[#This Row],[G/L-code]],OverzichtMaandelijkseOnkosten[Totaal])","v":{"v":0,"d":"€ 0.00"}},{"v":100000,"d":"€ 100,000.00"},{"$f":"IF(YearToDateTable[[#This Row],[Budget]]=\"\",\"\",YearToDateTable[[#This Row],[Budget]]-YearToDateTable[[#This Row],[Werkelijk]])","v":{"v":100000,"d":"€ 100,000.00"}},{"$f":"IFERROR(YearToDateTable[[#This Row],[Resterende €]]/YearToDateTable[[#This Row],[Budget]],\"\")","v":{"v":1,"d":"100.00%"}}]
[null,11000,"Liefdadigheid",{"$f":"SUMIF(OverzichtMaandelijkseOnkosten[G/L-code],YearToDateTable[[#This Row],[G/L-code]],OverzichtMaandelijkseOnkosten[Totaal])","v":{"v":0,"d":"€ 0.00"}},{"v":250000,"d":"€ 250,000.00"},{"$f":"IF(YearToDateTable[[#This Row],[Budget]]=\"\",\"\",YearToDateTable[[#This Row],[Budget]]-YearToDateTable[[#This Row],[Werkelijk]])","v":{"v":250000,"d":"€ 250,000.00"}},{"$f":"IFERROR(YearToDateTable[[#This Row],[Resterende €]]/YearToDateTable[[#This Row],[Budget]],\"\")","v":{"v":1,"d":"100.00%"}}]
[null,12000,"Sponsoring",{"$f":"SUMIF(OverzichtMaandelijkseOnkosten[G/L-code],YearToDateTable[[#This Row],[G/L-code]],OverzichtMaandelijkseOnkosten[Totaal])","v":{"v":0,"d":"€ 0.00"}},{"v":50000,"d":"€ 50,000.00"},{"$f":"IF(YearToDateTable[[#This Row],[Budget]]=\"\",\"\",YearToDateTable[[#This Row],[Budget]]-YearToDateTable[[#This Row],[Werkelijk]])","v":{"v":50000,"d":"€ 50,000.00"}},{"$f":"IFERROR(YearToDateTable[[#This Row],[Resterende €]]/YearToDateTable[[#This Row],[Budget]],\"\")","v":{"v":1,"d":"100.00%"}}]
[null,"Totaal",null,{"$f":"SUBTOTAL(109,YearToDateTable[Werkelijk])","v":{"v":0,"d":"€ 0.00"}},{"$f":"SUBTOTAL(109,YearToDateTable[Budget])","v":{"v":1140000,"d":"€ 1,140,000.00"}},{"$f":"SUBTOTAL(109,YearToDateTable[Resterende €])","v":{"v":1140000,"d":"€ 1,140,000.00"}},{"$f":"YearToDateTable[[#Totals],[Resterende €]]/YearToDateTable[[#Totals],[Budget]]","v":{"v":1,"d":"100.00%"}}]

{"sheet":"OVERZICHT MAANDELIJKSE ONKOSTEN","index":1,"n_rows":18,"n_cols":17,"rows_kept":18,"merged":[[1,1,1,16]]}
[null,"BUDGET JAAROVERZICHT TM VANDAAG","GESPECIFICEERDE KOSTEN"]
[null,"OVERZICHT MAANDELIJKSE ONKOSTEN"]
[null,"De slicer om gegevens te filteren op accounttitels staat in deze cel.",null,{"$f":"DATEVALUE(\"1-JAN\"&_JAAR)","v":"2019-01-01"},{"$f":"DATEVALUE(\"1-FEB\"&_JAAR)","v":"2019-02-01"},{"$f":"DATEVALUE(\"1-MRT\"&_JAAR)","v":"2019-03-01"},{"$f":"DATEVALUE(\"1-APR\"&_JAAR)","v":"2019-04-01"},{"$f":"DATEVALUE(\"1-MEI\"&_JAAR)","v":"2019-05-01"},{"$f":"DATEVALUE(\"1-JUN\"&_JAAR)","v":"2019-06-01"},{"$f":"DATEVALUE(\"1-JUL\"&_JAAR)","v":"2019-07-01"},{"$f":"DATEVALUE(\"1-AUG\"&_JAAR)","v":"2019-08-01"},{"$f":"DATEVALUE(\"1-SEP\"&_JAAR)","v":"2019-09-01"},{"$f":"DATEVALUE(\"1-OKT\"&_JAAR)","v":"2019-10-01"},{"$f":"DATEVALUE(\"1-NOV\"&_JAAR)","v":"2019-11-01"},{"$f":"DATEVALUE(\"1-DEC\"&_JAAR)","v":"2019-12-01"}]
[{"$nulls":3},{"$f":"EOMONTH(D3,0)","v":"2019-01-31"},{"$f":"EOMONTH(E3,0)","v":"2019-02-28"},{"$f":"EOMONTH(F3,0)","v":"2019-03-31"},{"$f":"EOMONTH(G3,0)","v":"2019-04-30"},{"$f":"EOMONTH(H3,0)","v":"2019-05-31"},{"$f":"EOMONTH(I3,0)","v":"2019-06-30"},"2019-07-31","2019-08-31","2019-09-30","2019-10-31","2019-11-30","2019-12-31"]
[null,"G/L-code","Rekeningnaam","Januari","Februari","Maart","April","Mei","Juni","Juli","Augustus","September","Oktober","November","December","Totaal"," "]
[null,1000,"Reclame",{"$f":"SUMIFS(GespecificeerdeKosten[Controleer bedrag],GespecificeerdeKosten[G/L-code],OverzichtMaandelijkseOnkosten[[#This Row],[G/L-code]],GespecificeerdeKosten[Factuurdatum],\">=\"&D$3,GespecificeerdeKosten[Factuurdatum],\"<=\"&D$4)+SUMIFS(Anders[Controleer bedrag],Anders[G/L-code],OverzichtMaandelijkseOnkosten[[#This Row],[G/L-code]],Anders[Aanvraag datumcontrole gestart],\">=\"&DATEVALUE(OverzichtMaandelijkseOnkosten[[#Headers],[Januari]]&\" 1, \"&_JAAR),Anders[Aanvraag datumcontrole gestart],\"<=\"&D$4)","v":{"v":0,"d":"€ 0.00"}},{"$f":"SUMIFS(GespecificeerdeKosten[Controleer bedrag],GespecificeerdeKosten[G/L-code],OverzichtMaandelijkseOnkosten[[#This Row],[G/L-code]],GespecificeerdeKosten[Factuurdatum],\">=\"&E$3,GespecificeerdeKosten[Factuurdatum],\"<=\"&E$4)+SUMIFS(Anders[Controleer bedrag],Anders[G/L-code],OverzichtMaandelijkseOnkosten[[#This Row],[G/L-code]],Anders[Aanvraag datumcontrole gestart],\">=\"&DATEVALUE(OverzichtMaandelijkseOnkosten[[#Headers],[Februari]]&\" 1, \"&_JAAR),Anders[Aanvraag datumcontrole gestart],\"<=\"&E$4)","v":{"v":0,"d":"€ 0.00"}},{"$f":"SUMIFS(GespecificeerdeKosten[Controleer bedrag],GespecificeerdeKosten[G/L-code],OverzichtMaandelijkseOnkosten[[#This Row],[G/L-code]],GespecificeerdeKosten[Factuurdatum],\">=\"&F$3,GespecificeerdeKosten[Factuurdatum],\"<=\"&F$4)+SUMIFS(Anders[Controleer bedrag],Anders[G/L-code],OverzichtMaandelijkseOnkosten[[#This Row],[G/L-code]],Anders[Aanvraag datumcontrole gestart],\">=\"&DATEVALUE(OverzichtMaandelijkseOnkosten[[#Headers],[Maart]]&\" 1, \"&_JAAR),Anders[Aanvraag datumcontrole gestart],\"<=\"&F$4)","v":{"v":0,"d":"€ 0.00"}},{"$f":"SUMIFS(GespecificeerdeKosten[Controleer bedrag],GespecificeerdeKosten[G/L-code],OverzichtMaandelijkseOnkosten[[#This Row],[G/L-code]],GespecificeerdeKosten[Factuurdatum],\">=\"&G$3,GespecificeerdeKosten[Factuurdatum],\"<=\"&G$4)+SUMIFS(Anders[Controleer bedrag],Anders[G/L-code],OverzichtMaandelijkseOnkosten[[#This Row],[G/L-code]],Anders[Aanvraag datumcontrole gestart],\">=\"&DATEVALUE(OverzichtMaandelijkseOnkosten[[#Headers],[April]]&\" 1, \"&_JAAR),Anders[Aanvraag datumcontrole gestart],\"<=\"&G$4)","v":{"v":0,"d":"€ 0.00"}},{"$f":"SUMIFS(GespecificeerdeKosten[Controleer bedrag],GespecificeerdeKosten[G/L-code],OverzichtMaandelijkseOnkosten[[#This Row],[G/L-code]],GespecificeerdeKosten[Factuurdatum],\">=\"&H$3,GespecificeerdeKosten[Factuurdatum],\"<=\"&H$4)+SUMIFS(Anders[Controleer bedrag],Anders[G/L-code],OverzichtMaandelijkseOnkosten[[#This Row],[G/L-code]],Anders[Aanvraag datumcontrole gestart],\">=\"&DATEVALUE(OverzichtMaandelijkseOnkosten[[#Headers],[Mei]]&\" 1, \"&_JAAR),Anders[Aanvraag datumcontrole gestart],\"<=\"&H$4)","v":{"v":0,"d":"€ 0.00"}},{"$f":"SUMIFS(GespecificeerdeKosten[Controleer bedrag],GespecificeerdeKosten[G/L-code],OverzichtMaandelijkseOnkosten[[#This Row],[G/L-code]],GespecificeerdeKosten[Factuurdatum],\">=\"&I$3,GespecificeerdeKosten[Factuurdatum],\"<=\"&I$4)+SUMIFS(Anders[Controleer bedrag],Anders[G/L-code],OverzichtMaandelijkseOnkosten[[#This Row],[G/L-code]],Anders[Aanvraag datumcontrole gestart],\">=\"&DATEVALUE(OverzichtMaandelijkseOnkosten[[#Headers],[Juni]]&\" 1, \"&_JAAR),Anders[Aanvraag datumcontrole gestart],\"<=\"&I$4)","v":{"v":0,"d":"€ 0.00"}},{"$f":"SUMIFS(GespecificeerdeKosten[Controleer bedrag],GespecificeerdeKosten[G/L-code],OverzichtMaandelijkseOnkosten[[#This Row],[G/L-code]],GespecificeerdeKosten[Factuurdatum],\">=\"&J$3,GespecificeerdeKosten[Factuurdatum],\"<=\"&J$4)+SUMIFS(Anders[Controleer bedrag],Anders[G/L-code],OverzichtMaandelijkseOnkosten[[#This Row],[G/L-code]],Anders[Aanvraag datumcontrole gestart],\">=\"&DATEVALUE(OverzichtMaandelijkseOnkosten[[#Headers],[Juli]]&\" 1, \"&_JAAR),Anders[Aanvraag datumcontrole gestart],\"<=\"&J$4)","v":{"v":0,"d":"€ 0.00"}},{"$f":"SUMIFS(GespecificeerdeKosten[Controleer bedrag],GespecificeerdeKosten[G/L-code],OverzichtMaandelijkseOnkosten[[#This Row],[G/L-code]],GespecificeerdeKosten[Factuurdatum],\">=\"&K$3,GespecificeerdeKosten[Factuurdatum],\"<=\"&K$4)+SUMIFS(Anders[Controleer bedrag],Anders[G/L-code],OverzichtMaandelijkseOnkosten[[#This Row],[G/L-code]],Anders[Aanvraag datumcontrole gestart],\">=\"&DATEVALUE(OverzichtMaandelijkseOnkosten[[#Headers],[Augustus]]&\" 1, \"&_JAAR),Anders[Aanvraag datumcontrole gestart],\"<=\"&K$4)","v":{"v":0,"d":"€ 0.00"}},{"$f":"SUMIFS(GespecificeerdeKosten[Controleer bedrag],GespecificeerdeKosten[G/L-code],OverzichtMaandelijkseOnkosten[[#This Row],[G/L-code]],GespecificeerdeKosten[Factuurdatum],\">=\"&L$3,GespecificeerdeKosten[Factuurdatum],\"<=\"&L$4)+SUMIFS(Anders[Controleer bedrag],Anders[G/L-code],OverzichtMaandelijkseOnkosten[[#This Row],[G/L-code]],Anders[Aanvraag datumcontrole gestart],\">=\"&DATEVALUE(OverzichtMaandelijkseOnkosten[[#Headers],[September]]&\" 1, \"&_JAAR),Anders[Aanvraag datumcontrole gestart],\"<=\"&L$4)","v":{"v":0,"d":"€ 0.00"}},{"$f":"SUMIFS(GespecificeerdeKosten[Controleer bedrag],GespecificeerdeKosten[G/L-code],OverzichtMaandelijkseOnkosten[[#This Row],[G/L-code]],GespecificeerdeKosten[Factuurdatum],\">=\"&M$3,GespecificeerdeKosten[Factuurdatum],\"<=\"&M$4)+SUMIFS(Anders[Controleer bedrag],Anders[G/L-code],OverzichtMaandelijkseOnkosten[[#This Row],[G/L-code]],Anders[Aanvraag datumcontrole gestart],\">=\"&DATEVALUE(OverzichtMaandelijkseOnkosten[[#Headers],[Oktober]]&\" 1, \"&_JAAR),Anders[Aanvraag datumcontrole gestart],\"<=\"&M$4)","v":{"v":0,"d":"€ 0.00"}},{"$f":"SUMIFS(GespecificeerdeKosten[Controleer bedrag],GespecificeerdeKosten[G/L-code],OverzichtMaandelijkseOnkosten[[#This Row],[G/L-code]],GespecificeerdeKosten[Factuurdatum],\">=\"&N$3,GespecificeerdeKosten[Factuurdatum],\"<=\"&N$4)+SUMIFS(Anders[Controleer bedrag],Anders[G/L-code],OverzichtMaandelijkseOnkosten[[#This Row],[G/L-code]],Anders[Aanvraag datumcontrole gestart],\">=\"&DATEVALUE(OverzichtMaandelijkseOnkosten[[#Headers],[November]]&\" 1, \"&_JAAR),Anders[Aanvraag datumcontrole gestart],\"<=\"&N$4)","v":{"v":0,"d":"€ 0.00"}},{"$f":"SUMIFS(GespecificeerdeKosten[Controleer bedrag],GespecificeerdeKosten[G/L-code],OverzichtMaandelijkseOnkosten[[#This Row],[G/L-code]],GespecificeerdeKosten[Factuurdatum],\">=\"&O$3,GespecificeerdeKosten[Factuurdatum],\"<=\"&O$4)+SUMIFS(Anders[Controleer bedrag],Anders[G/L-code],OverzichtMaandelijkseOnkosten[[#This Row],[G/L-code]],Anders[Aanvraag datumcontrole gestart],\">=\"&DATEVALUE(OverzichtMaandelijkseOnkosten[[#Headers],[December]]&\" 1, \"&_JAAR),Anders[Aanvraag datumcontrole gestart],\"<=\"&O$4)","v":{"v":0,"d":"€ 0.00"}},{"$f":"SUM(OverzichtMaandelijkseOnkosten[[#This Row],[Januari]:[December]])","v":{"v":0,"d":"€ 0.00"}}]
[null,2000,"Kantoorapparatuur",{"$f":"SUMIFS(GespecificeerdeKosten[Controleer bedrag],GespecificeerdeKosten[G/L-code],OverzichtMaandelijkseOnkosten[[#This Row],[G/L-code]],GespecificeerdeKosten[Factuurdatum],\">=\"&D$3,GespecificeerdeKosten[Factuurdatum],\"<=\"&D$4)+SUMIFS(Anders[Controleer bedrag],Anders[G/L-code],OverzichtMaandelijkseOnkosten[[#This Row],[G/L-code]],Anders[Aanvraag datumcontrole gestart],\">=\"&DATEVALUE(OverzichtMaandelijkseOnkosten[[#Headers],[Januari]]&\" 1, \"&_JAAR),Anders[Aanvraag datumcontrole gestart],\"<=\"&D$4)","v":{"v":0,"d":"€ 0.00"}},{"$f":"SUMIFS(GespecificeerdeKosten[Controleer bedrag],GespecificeerdeKosten[G/L-code],OverzichtMaandelijkseOnkosten[[#This Row],[G/L-code]],GespecificeerdeKosten[Factuurdatum],\">=\"&E$3,GespecificeerdeKosten[Factuurdatum],\"<=\"&E$4)+SUMIFS(Anders[Controleer bedrag],Anders[G/L-code],OverzichtMaandelijkseOnkosten[[#This Row],[G/L-code]],Anders[Aanvraag datumcontrole gestart],\">=\"&DATEVALUE(OverzichtMaandelijkseOnkosten[[#Headers],[Februari]]&\" 1, \"&_JAAR),Anders[Aanvraag datumcontrole gestart],\"<=\"&E$4)","v":{"v":0,"d":"€ 0.00"}},{"$f":"SUMIFS(GespecificeerdeKosten[Controleer bedrag],GespecificeerdeKosten[G/L-code],OverzichtMaandelijkseOnkosten[[#This Row],[G/L-code]],GespecificeerdeKosten[Factuurdatum],\">=\"&F$3,GespecificeerdeKosten[Factuurdatum],\"<=\"&F$4)+SUMIFS(Anders[Controleer bedrag],Anders[G/L-code],OverzichtMaandelijkseOnkosten[[#This Row],[G/L-code]],Anders[Aanvraag datumcontrole gestart],\">=\"&DATEVALUE(OverzichtMaandelijkseOnkosten[[#Headers],[Maart]]&\" 1, \"&_JAAR),Anders[Aanvraag datumcontrole gestart],\"<=\"&F$4)","v":{"v":0,"d":"€ 0.00"}},{"$f":"SUMIFS(GespecificeerdeKosten[Controleer bedrag],GespecificeerdeKosten[G/L-code],OverzichtMaandelijkseOnkosten[[#This Row],[G/L-code]],GespecificeerdeKosten[Factuurdatum],\">=\"&G$3,GespecificeerdeKosten[Factuurdatum],\"<=\"&G$4)+SUMIFS(Anders[Controleer bedrag],Anders[G/L-code],OverzichtMaandelijkseOnkosten[[#This Row],[G/L-code]],Anders[Aanvraag datumcontrole gestart],\">=\"&DATEVALUE(OverzichtMaandelijkseOnkosten[[#Headers],[April]]&\" 1, \"&_JAAR),Anders[Aanvraag datumcontrole gestart],\"<=\"&G$4)","v":{"v":0,"d":"€ 0.00"}},{"$f":"SUMIFS(GespecificeerdeKosten[Controleer bedrag],GespecificeerdeKosten[G/L-code],OverzichtMaandelijkseOnkosten[[#This Row],[G/L-code]],GespecificeerdeKosten[Factuurdatum],\">=\"&H$3,GespecificeerdeKosten[Factuurdatum],\"<=\"&H$4)+SUMIFS(Anders[Controleer bedrag],Anders[G/L-code],OverzichtMaandelijkseOnkosten[[#This Row],[G/L-code]],Anders[Aanvraag datumcontrole gestart],\">=\"&DATEVALUE(OverzichtMaandelijkseOnkosten[[#Headers],[Mei]]&\" 1, \"&_JAAR),Anders[Aanvraag datumcontrole gestart],\"<=\"&H$4)","v":{"v":0,"d":"€ 0.00"}},{"$f":"SUMIFS(GespecificeerdeKosten[Controleer bedrag],GespecificeerdeKosten[G/L-code],OverzichtMaandelijkseOnkosten[[#This Row],[G/L-code]],GespecificeerdeKosten[Factuurdatum],\">=\"&I$3,GespecificeerdeKosten[Factuurdatum],\"<=\"&I$4)+SUMIFS(Anders[Controleer bedrag],Anders[G/L-code],OverzichtMaandelijkseOnkosten[[#This Row],[G/L-code]],Anders[Aanvraag datumcontrole gestart],\">=\"&DATEVALUE(OverzichtMaandelijkseOnkosten[[#Headers],[Juni]]&\" 1, \"&_JAAR),Anders[Aanvraag datumcontrole gestart],\"<=\"&I$4)","v":{"v":0,"d":"€ 0.00"}},{"$f":"SUMIFS(GespecificeerdeKosten[Controleer bedrag],GespecificeerdeKosten[G/L-code],OverzichtMaandelijkseOnkosten[[#This Row],[G/L-code]],GespecificeerdeKosten[Factuurdatum],\">=\"&J$3,GespecificeerdeKosten[Factuurdatum],\"<=\"&J$4)+SUMIFS(Anders[Controleer bedrag],Anders[G/L-code],OverzichtMaandelijkseOnkosten[[#This Row],[G/L-code]],Anders[Aanvraag datumcontrole gestart],\">=\"&DATEVALUE(OverzichtMaandelijkseOnkosten[[#Headers],[Juli]]&\" 1, \"&_JAAR),Anders[Aanvraag datumcontrole gestart],\"<=\"&J$4)","v":{"v":0,"d":"€ 0.00"}},{"$f":"SUMIFS(GespecificeerdeKosten[Controleer bedrag],GespecificeerdeKosten[G/L-code],OverzichtMaandelijkseOnkosten[[#This Row],[G/L-code]],GespecificeerdeKosten[Factuurdatum],\">=\"&K$3,GespecificeerdeKosten[Factuurdatum],\"<=\"&K$4)+SUMIFS(Anders[Controleer bedrag],Anders[G/L-code],OverzichtMaandelijkseOnkosten[[#This Row],[G/L-code]],Anders[Aanvraag datumcontrole gestart],\">=\"&DATEVALUE(OverzichtMaandelijkseOnkosten[[#Headers],[Augustus]]&\" 1, \"&_JAAR),Anders[Aanvraag datumcontrole gestart],\"<=\"&K$4)","v":{"v":0,"d":"€ 0.00"}},{"$f":"SUMIFS(GespecificeerdeKosten[Controleer bedrag],GespecificeerdeKosten[G/L-code],OverzichtMaandelijkseOnkosten[[#This Row],[G/L-code]],GespecificeerdeKosten[Factuurdatum],\">=\"&L$3,GespecificeerdeKosten[Factuurdatum],\"<=\"&L$4)+SUMIFS(Anders[Controleer bedrag],Anders[G/L-code],OverzichtMaandelijkseOnkosten[[#This Row],[G/L-code]],Anders[Aanvraag datumcontrole gestart],\">=\"&DATEVALUE(OverzichtMaandelijkseOnkosten[[#Headers],[September]]&\" 1, \"&_JAAR),Anders[Aanvraag datumcontrole gestart],\"<=\"&L$4)","v":{"v":0,"d":"€ 0.00"}},{"$f":"SUMIFS(GespecificeerdeKosten[Controleer bedrag],GespecificeerdeKosten[G/L-code],OverzichtMaandelijkseOnkosten[[#This Row],[G/L-code]],GespecificeerdeKosten[Factuurdatum],\">=\"&M$3,GespecificeerdeKosten[Factuurdatum],\"<=\"&M$4)+SUMIFS(Anders[Controleer bedrag],Anders[G/L-code],OverzichtMaandelijkseOnkosten[[#This Row],[G/L-code]],Anders[Aanvraag datumcontrole gestart],\">=\"&DATEVALUE(OverzichtMaandelijkseOnkosten[[#Headers],[Oktober]]&\" 1, \"&_JAAR),Anders[Aanvraag datumcontrole gestart],\"<=\"&M$4)","v":{"v":0,"d":"€ 0.00"}},{"$f":"SUMIFS(GespecificeerdeKosten[Controleer bedrag],GespecificeerdeKosten[G/L-code],OverzichtMaandelijkseOnkosten[[#This Row],[G/L-code]],GespecificeerdeKosten[Factuurdatum],\">=\"&N$3,GespecificeerdeKosten[Factuurdatum],\"<=\"&N$4)+SUMIFS(Anders[Controleer bedrag],Anders[G/L-code],OverzichtMaandelijkseOnkosten[[#This Row],[G/L-code]],Anders[Aanvraag datumcontrole gestart],\">=\"&DATEVALUE(OverzichtMaandelijkseOnkosten[[#Headers],[November]]&\" 1, \"&_JAAR),Anders[Aanvraag datumcontrole gestart],\"<=\"&N$4)","v":{"v":0,"d":"€ 0.00"}},{"$f":"SUMIFS(GespecificeerdeKosten[Controleer bedrag],GespecificeerdeKosten[G/L-code],OverzichtMaandelijkseOnkosten[[#This Row],[G/L-code]],GespecificeerdeKosten[Factuurdatum],\">=\"&O$3,GespecificeerdeKosten[Factuurdatum],\"<=\"&O$4)+SUMIFS(Anders[Controleer bedrag],Anders[G/L-code],OverzichtMaandelijkseOnkosten[[#This Row],[G/L-code]],Anders[Aanvraag datumcontrole gestart],\">=\"&DATEVALUE(OverzichtMaandelijkseOnkosten[[#Headers],[December]]&\" 1, \"&_JAAR),Anders[Aanvraag datumcontrole gestart],\"<=\"&O$4)","v":{"v":0,"d":"€ 0.00"}},{"$f":"SUM(OverzichtMaandelijkseOnkosten[[#This Row],[Januari]:[December]])","v":{"v":0,"d":"€ 0.00"}}]
[null,3000,"Printers",{"$f":"SUMIFS(GespecificeerdeKosten[Controleer bedrag],GespecificeerdeKosten[G/L-code],OverzichtMaandelijkseOnkosten[[#This Row],[G/L-code]],GespecificeerdeKosten[Factuurdatum],\">=\"&D$3,GespecificeerdeKosten[Factuurdatum],\"<=\"&D$4)+SUMIFS(Anders[Controleer bedrag],Anders[G/L-code],OverzichtMaandelijkseOnkosten[[#This Row],[G/L-code]],Anders[Aanvraag datumcontrole gestart],\">=\"&DATEVALUE(OverzichtMaandelijkseOnkosten[[#Headers],[Januari]]&\" 1, \"&_JAAR),Anders[Aanvraag datumcontrole gestart],\"<=\"&D$4)","v":{"v":0,"d":"€ 0.00"}},{"$f":"SUMIFS(GespecificeerdeKosten[Controleer bedrag],GespecificeerdeKosten[G/L-code],OverzichtMaandelijkseOnkosten[[#This Row],[G/L-code]],GespecificeerdeKosten[Factuurdatum],\">=\"&E$3,GespecificeerdeKosten[Factuurdatum],\"<=\"&E$4)+SUMIFS(Anders[Controleer bedrag],Anders[G/L-code],OverzichtMaandelijkseOnkosten[[#This Row],[G/L-code]],Anders[Aanvraag datumcontrole gestart],\">=\"&DATEVALUE(OverzichtMaandelijkseOnkosten[[#Headers],[Februari]]&\" 1, \"&_JAAR),Anders[Aanvraag datumcontrole gestart],\"<=\"&E$4)","v":{"v":0,"d":"€ 0.00"}},{"$f":"SUMIFS(GespecificeerdeKosten[Controleer bedrag],GespecificeerdeKosten[G/L-code],OverzichtMaandelijkseOnkosten[[#This Row],[G/L-code]],GespecificeerdeKosten[Factuurdatum],\">=\"&F$3,GespecificeerdeKosten[Factuurdatum],\"<=\"&F$4)+SUMIFS(Anders[Controleer bedrag],Anders[G/L-code],OverzichtMaandelijkseOnkosten[[#This Row],[G/L-code]],Anders[Aanvraag datumcontrole gestart],\">=\"&DATEVALUE(OverzichtMaandelijkseOnkosten[[#Headers],[Maart]]&\" 1, \"&_JAAR),Anders[Aanvraag datumcontrole gestart],\"<=\"&F$4)","v":{"v":0,"d":"€ 0.00"}},{"$f":"SUMIFS(GespecificeerdeKosten[Controleer bedrag],GespecificeerdeKosten[G/L-code],OverzichtMaandelijkseOnkosten[[#This Row],[G/L-code]],GespecificeerdeKosten[Factuurdatum],\">=\"&G$3,GespecificeerdeKosten[Factuurdatum],\"<=\"&G$4)+SUMIFS(Anders[Controleer bedrag],Anders[G/L-code],OverzichtMaandelijkseOnkosten[[#This Row],[G/L-code]],Anders[Aanvraag datumcontrole gestart],\">=\"&DATEVALUE(OverzichtMaandelijkseOnkosten[[#Headers],[April]]&\" 1, \"&_JAAR),Anders[Aanvraag datumcontrole gestart],\"<=\"&G$4)","v":{"v":0,"d":"€ 0.00"}},{"$f":"SUMIFS(GespecificeerdeKosten[Controleer bedrag],GespecificeerdeKosten[G/L-code],OverzichtMaandelijkseOnkosten[[#This Row],[G/L-code]],GespecificeerdeKosten[Factuurdatum],\">=\"&H$3,GespecificeerdeKosten[Factuurdatum],\"<=\"&H$4)+SUMIFS(Anders[Controleer bedrag],Anders[G/L-code],OverzichtMaandelijkseOnkosten[[#This Row],[G/L-code]],Anders[Aanvraag datumcontrole gestart],\">=\"&DATEVALUE(OverzichtMaandelijkseOnkosten[[#Headers],[Mei]]&\" 1, \"&_JAAR),Anders[Aanvraag datumcontrole gestart],\"<=\"&H$4)","v":{"v":0,"d":"€ 0.00"}},{"$f":"SUMIFS(GespecificeerdeKosten[Controleer bedrag],GespecificeerdeKosten[G/L-code],OverzichtMaandelijkseOnkosten[[#This Row],[G/L-code]],GespecificeerdeKosten[Factuurdatum],\">=\"&I$3,GespecificeerdeKosten[Factuurdatum],\"<=\"&I$4)+SUMIFS(Anders[Controleer bedrag],Anders[G/L-code],OverzichtMaandelijkseOnkosten[[#This Row],[G/L-code]],Anders[Aanvraag datumcontrole gestart],\">=\"&DATEVALUE(OverzichtMaandelijkseOnkosten[[#Headers],[Juni]]&\" 1, \"&_JAAR),Anders[Aanvraag datumcontrole gestart],\"<=\"&I$4)","v":{"v":0,"d":"€ 0.00"}},{"$f":"SUMIFS(GespecificeerdeKosten[Controleer bedrag],GespecificeerdeKosten[G/L-code],OverzichtMaandelijkseOnkosten[[#This Row],[G/L-code]],GespecificeerdeKosten[Factuurdatum],\">=\"&J$3,GespecificeerdeKosten[Factuurdatum],\"<=\"&J$4)+SUMIFS(Anders[Controleer bedrag],Anders[G/L-code],OverzichtMaandelijkseOnkosten[[#This Row],[G/L-code]],Anders[Aanvraag datumcontrole gestart],\">=\"&DATEVALUE(OverzichtMaandelijkseOnkosten[[#Headers],[Juli]]&\" 1, \"&_JAAR),Anders[Aanvraag datumcontrole gestart],\"<=\"&J$4)","v":{"v":0,"d":"€ 0.00"}},{"$f":"SUMIFS(GespecificeerdeKosten[Controleer bedrag],GespecificeerdeKosten[G/L-code],OverzichtMaandelijkseOnkosten[[#This Row],[G/L-code]],GespecificeerdeKosten[Factuurdatum],\">=\"&K$3,GespecificeerdeKosten[Factuurdatum],\"<=\"&K$4)+SUMIFS(Anders[Controleer bedrag],Anders[G/L-code],OverzichtMaandelijkseOnkosten[[#This Row],[G/L-code]],Anders[Aanvraag datumcontrole gestart],\">=\"&DATEVALUE(OverzichtMaandelijkseOnkosten[[#Headers],[Augustus]]&\" 1, \"&_JAAR),Anders[Aanvraag datumcontrole gestart],\"<=\"&K$4)","v":{"v":0,"d":"€ 0.00"}},{"$f":"SUMIFS(GespecificeerdeKosten[Controleer bedrag],GespecificeerdeKosten[G/L-code],OverzichtMaandelijkseOnkosten[[#This Row],[G/L-code]],GespecificeerdeKosten[Factuurdatum],\">=\"&L$3,GespecificeerdeKosten[Factuurdatum],\"<=\"&L$4)+SUMIFS(Anders[Controleer bedrag],Anders[G/L-code],OverzichtMaandelijkseOnkosten[[#This Row],[G/L-code]],Anders[Aanvraag datumcontrole gestart],\">=\"&DATEVALUE(OverzichtMaandelijkseOnkosten[[#Headers],[September]]&\" 1, \"&_JAAR),Anders[Aanvraag datumcontrole gestart],\"<=\"&L$4)","v":{"v":0,"d":"€ 0.00"}},{"$f":"SUMIFS(GespecificeerdeKosten[Controleer bedrag],GespecificeerdeKosten[G/L-code],OverzichtMaandelijkseOnkosten[[#This Row],[G/L-code]],GespecificeerdeKosten[Factuurdatum],\">=\"&M$3,GespecificeerdeKosten[Factuurdatum],\"<=\"&M$4)+SUMIFS(Anders[Controleer bedrag],Anders[G/L-code],OverzichtMaandelijkseOnkosten[[#This Row],[G/L-code]],Anders[Aanvraag datumcontrole gestart],\">=\"&DATEVALUE(OverzichtMaandelijkseOnkosten[[#Headers],[Oktober]]&\" 1, \"&_JAAR),Anders[Aanvraag datumcontrole gestart],\"<=\"&M$4)","v":{"v":0,"d":"€ 0.00"}},{"$f":"SUMIFS(GespecificeerdeKosten[Controleer bedrag],GespecificeerdeKosten[G/L-code],OverzichtMaandelijkseOnkosten[[#This Row],[G/L-code]],GespecificeerdeKosten[Factuurdatum],\">=\"&N$3,GespecificeerdeKosten[Factuurdatum],\"<=\"&N$4)+SUMIFS(Anders[Controleer bedrag],Anders[G/L-code],OverzichtMaandelijkseOnkosten[[#This Row],[G/L-code]],Anders[Aanvraag datumcontrole gestart],\">=\"&DATEVALUE(OverzichtMaandelijkseOnkosten[[#Headers],[November]]&\" 1, \"&_JAAR),Anders[Aanvraag datumcontrole gestart],\"<=\"&N$4)","v":{"v":0,"d":"€ 0.00"}},{"$f":"SUMIFS(GespecificeerdeKosten[Controleer bedrag],GespecificeerdeKosten[G/L-code],OverzichtMaandelijkseOnkosten[[#This Row],[G/L-code]],GespecificeerdeKosten[Factuurdatum],\">=\"&O$3,GespecificeerdeKosten[Factuurdatum],\"<=\"&O$4)+SUMIFS(Anders[Controleer bedrag],Anders[G/L-code],OverzichtMaandelijkseOnkosten[[#This Row],[G/L-code]],Anders[Aanvraag datumcontrole gestart],\">=\"&DATEVALUE(OverzichtMaandelijkseOnkosten[[#Headers],[December]]&\" 1, \"&_JAAR),Anders[Aanvraag datumcontrole gestart],\"<=\"&O$4)","v":{"v":0,"d":"€ 0.00"}},{"$f":"SUM(OverzichtMaandelijkseOnkosten[[#This Row],[Januari]:[December]])","v":{"v":0,"d":"€ 0.00"}}]
[null,4000,"Serverkosten",{"$f":"SUMIFS(GespecificeerdeKosten[Controleer bedrag],GespecificeerdeKosten[G/L-code],OverzichtMaandelijkseOnkosten[[#This Row],[G/L-code]],GespecificeerdeKosten[Factuurdatum],\">=\"&D$3,GespecificeerdeKosten[Factuurdatum],\"<=\"&D$4)+SUMIFS(Anders[Controleer bedrag],Anders[G/L-code],OverzichtMaandelijkseOnkosten[[#This Row],[G/L-code]],Anders[Aanvraag datumcontrole gestart],\">=\"&DATEVALUE(OverzichtMaandelijkseOnkosten[[#Headers],[Januari]]&\" 1, \"&_JAAR),Anders[Aanvraag datumcontrole gestart],\"<=\"&D$4)","v":{"v":0,"d":"€ 0.00"}},{"$f":"SUMIFS(GespecificeerdeKosten[Controleer bedrag],GespecificeerdeKosten[G/L-code],OverzichtMaandelijkseOnkosten[[#This Row],[G/L-code]],GespecificeerdeKosten[Factuurdatum],\">=\"&E$3,GespecificeerdeKosten[Factuurdatum],\"<=\"&E$4)+SUMIFS(Anders[Controleer bedrag],Anders[G/L-code],OverzichtMaandelijkseOnkosten[[#This Row],[G/L-code]],Anders[Aanvraag datumcontrole gestart],\">=\"&DATEVALUE(OverzichtMaandelijkseOnkosten[[#Headers],[Februari]]&\" 1, \"&_JAAR),Anders[Aanvraag datumcontrole gestart],\"<=\"&E$4)","v":{"v":0,"d":"€ 0.00"}},{"$f":"SUMIFS(GespecificeerdeKosten[Controleer bedrag],GespecificeerdeKosten[G/L-code],OverzichtMaandelijkseOnkosten[[#This Row],[G/L-code]],GespecificeerdeKosten[Factuurdatum],\">=\"&F$3,GespecificeerdeKosten[Factuurdatum],\"<=\"&F$4)+SUMIFS(Anders[Controleer bedrag],Anders[G/L-code],OverzichtMaandelijkseOnkosten[[#This Row],[G/L-code]],Anders[Aanvraag datumcontrole gestart],\">=\"&DATEVALUE(OverzichtMaandelijkseOnkosten[[#Headers],[Maart]]&\" 1, \"&_JAAR),Anders[Aanvraag datumcontrole gestart],\"<=\"&F$4)","v":{"v":0,"d":"€ 0.00"}},{"$f":"SUMIFS(GespecificeerdeKosten[Controleer bedrag],GespecificeerdeKosten[G/L-code],OverzichtMaandelijkseOnkosten[[#This Row],[G/L-code]],GespecificeerdeKosten[Factuurdatum],\">=\"&G$3,GespecificeerdeKosten[Factuurdatum],\"<=\"&G$4)+SUMIFS(Anders[Controleer bedrag],Anders[G/L-code],OverzichtMaandelijkseOnkosten[[#This Row],[G/L-code]],Anders[Aanvraag datumcontrole gestart],\">=\"&DATEVALUE(OverzichtMaandelijkseOnkosten[[#Headers],[April]]&\" 1, \"&_JAAR),Anders[Aanvraag datumcontrole gestart],\"<=\"&G$4)","v":{"v":0,"d":"€ 0.00"}},{"$f":"SUMIFS(GespecificeerdeKosten[Controleer bedrag],GespecificeerdeKosten[G/L-code],OverzichtMaandelijkseOnkosten[[#This Row],[G/L-code]],GespecificeerdeKosten[Factuurdatum],\">=\"&H$3,GespecificeerdeKosten[Factuurdatum],\"<=\"&H$4)+SUMIFS(Anders[Controleer bedrag],Anders[G/L-code],OverzichtMaandelijkseOnkosten[[#This Row],[G/L-code]],Anders[Aanvraag datumcontrole gestart],\">=\"&DATEVALUE(OverzichtMaandelijkseOnkosten[[#Headers],[Mei]]&\" 1, \"&_JAAR),Anders[Aanvraag datumcontrole gestart],\"<=\"&H$4)","v":{"v":0,"d":"€ 0.00"}},{"$f":"SUMIFS(GespecificeerdeKosten[Controleer bedrag],GespecificeerdeKosten[G/L-code],OverzichtMaandelijkseOnkosten[[#This Row],[G/L-code]],GespecificeerdeKosten[Factuurdatum],\">=\"&I$3,GespecificeerdeKosten[Factuurdatum],\"<=\"&I$4)+SUMIFS(Anders[Controleer bedrag],Anders[G/L-code],OverzichtMaandelijkseOnkosten[[#This Row],[G/L-code]],Anders[Aanvraag datumcontrole gestart],\">=\"&DATEVALUE(OverzichtMaandelijkseOnkosten[[#Headers],[Juni]]&\" 1, \"&_JAAR),Anders[Aanvraag datumcontrole gestart],\"<=\"&I$4)","v":{"v":0,"d":"€ 0.00"}},{"$f":"SUMIFS(GespecificeerdeKosten[Controleer bedrag],GespecificeerdeKosten[G/L-code],OverzichtMaandelijkseOnkosten[[#This Row],[G/L-code]],GespecificeerdeKosten[Factuurdatum],\">=\"&J$3,GespecificeerdeKosten[Factuurdatum],\"<=\"&J$4)+SUMIFS(Anders[Controleer bedrag],Anders[G/L-code],OverzichtMaandelijkseOnkosten[[#This Row],[G/L-code]],Anders[Aanvraag datumcontrole gestart],\">=\"&DATEVALUE(OverzichtMaandelijkseOnkosten[[#Headers],[Juli]]&\" 1, \"&_JAAR),Anders[Aanvraag datumcontrole gestart],\"<=\"&J$4)","v":{"v":0,"d":"€ 0.00"}},{"$f":"SUMIFS(GespecificeerdeKosten[Controleer bedrag],GespecificeerdeKosten[G/L-code],OverzichtMaandelijkseOnkosten[[#This Row],[G/L-code]],GespecificeerdeKosten[Factuurdatum],\">=\"&K$3,GespecificeerdeKosten[Factuurdatum],\"<=\"&K$4)+SUMIFS(Anders[Controleer bedrag],Anders[G/L-code],OverzichtMaandelijkseOnkosten[[#This Row],[G/L-code]],Anders[Aanvraag datumcontrole gestart],\">=\"&DATEVALUE(OverzichtMaandelijkseOnkosten[[#Headers],[Augustus]]&\" 1, \"&_JAAR),Anders[Aanvraag datumcontrole gestart],\"<=\"&K$4)","v":{"v":0,"d":"€ 0.00"}},{"$f":"SUMIFS(GespecificeerdeKosten[Controleer bedrag],GespecificeerdeKosten[G/L-code],OverzichtMaandelijkseOnkosten[[#This Row],[G/L-code]],GespecificeerdeKosten[Factuurdatum],\">=\"&L$3,GespecificeerdeKosten[Factuurdatum],\"<=\"&L$4)+SUMIFS(Anders[Controleer bedrag],Anders[G/L-code],OverzichtMaandelijkseOnkosten[[#This Row],[G/L-code]],Anders[Aanvraag datumcontrole gestart],\">=\"&DATEVALUE(OverzichtMaandelijkseOnkosten[[#Headers],[September]]&\" 1, \"&_JAAR),Anders[Aanvraag datumcontrole gestart],\"<=\"&L$4)","v":{"v":0,"d":"€ 0.00"}},{"$f":"SUMIFS(GespecificeerdeKosten[Controleer bedrag],GespecificeerdeKosten[G/L-code],OverzichtMaandelijkseOnkosten[[#This Row],[G/L-code]],GespecificeerdeKosten[Factuurdatum],\">=\"&M$3,GespecificeerdeKosten[Factuurdatum],\"<=\"&M$4)+SUMIFS(Anders[Controleer bedrag],Anders[G/L-code],OverzichtMaandelijkseOnkosten[[#This Row],[G/L-code]],Anders[Aanvraag datumcontrole gestart],\">=\"&DATEVALUE(OverzichtMaandelijkseOnkosten[[#Headers],[Oktober]]&\" 1, \"&_JAAR),Anders[Aanvraag datumcontrole gestart],\"<=\"&M$4)","v":{"v":0,"d":"€ 0.00"}},{"$f":"SUMIFS(GespecificeerdeKosten[Controleer bedrag],GespecificeerdeKosten[G/L-code],OverzichtMaandelijkseOnkosten[[#This Row],[G/L-code]],GespecificeerdeKosten[Factuurdatum],\">=\"&N$3,GespecificeerdeKosten[Factuurdatum],\"<=\"&N$4)+SUMIFS(Anders[Controleer bedrag],Anders[G/L-code],OverzichtMaandelijkseOnkosten[[#This Row],[G/L-code]],Anders[Aanvraag datumcontrole gestart],\">=\"&DATEVALUE(OverzichtMaandelijkseOnkosten[[#Headers],[November]]&\" 1, \"&_JAAR),Anders[Aanvraag datumcontrole gestart],\"<=\"&N$4)","v":{"v":0,"d":"€ 0.00"}},{"$f":"SUMIFS(GespecificeerdeKosten[Controleer bedrag],GespecificeerdeKosten[G/L-code],OverzichtMaandelijkseOnkosten[[#This Row],[G/L-code]],GespecificeerdeKosten[Factuurdatum],\">=\"&O$3,GespecificeerdeKosten[Factuurdatum],\"<=\"&O$4)+SUMIFS(Anders[Controleer bedrag],Anders[G/L-code],OverzichtMaandelijkseOnkosten[[#This Row],[G/L-code]],Anders[Aanvraag datumcontrole gestart],\">=\"&DATEVALUE(OverzichtMaandelijkseOnkosten[[#Headers],[December]]&\" 1, \"&_JAAR),Anders[Aanvraag datumcontrole gestart],\"<=\"&O$4)","v":{"v":0,"d":"€ 0.00"}},{"$f":"SUM(OverzichtMaandelijkseOnkosten[[#This Row],[Januari]:[December]])","v":{"v":0,"d":"€ 0.00"}}]
[null,5000,"Benodigdheden",{"$f":"SUMIFS(GespecificeerdeKosten[Controleer bedrag],GespecificeerdeKosten[G/L-code],OverzichtMaandelijkseOnkosten[[#This Row],[G/L-code]],GespecificeerdeKosten[Factuurdatum],\">=\"&D$3,GespecificeerdeKosten[Factuurdatum],\"<=\"&D$4)+SUMIFS(Anders[Controleer bedrag],Anders[G/L-code],OverzichtMaandelijkseOnkosten[[#This Row],[G/L-code]],Anders[Aanvraag datumcontrole gestart],\">=\"&DATEVALUE(OverzichtMaandelijkseOnkosten[[#Headers],[Januari]]&\" 1, \"&_JAAR),Anders[Aanvraag datumcontrole gestart],\"<=\"&D$4)","v":{"v":0,"d":"€ 0.00"}},{"$f":"SUMIFS(GespecificeerdeKosten[Controleer bedrag],GespecificeerdeKosten[G/L-code],OverzichtMaandelijkseOnkosten[[#This Row],[G/L-code]],GespecificeerdeKosten[Factuurdatum],\">=\"&E$3,GespecificeerdeKosten[Factuurdatum],\"<=\"&E$4)+SUMIFS(Anders[Controleer bedrag],Anders[G/L-code],OverzichtMaandelijkseOnkosten[[#This Row],[G/L-code]],Anders[Aanvraag datumcontrole gestart],\">=\"&DATEVALUE(OverzichtMaandelijkseOnkosten[[#Headers],[Februari]]&\" 1, \"&_JAAR),Anders[Aanvraag datumcontrole gestart],\"<=\"&E$4)","v":{"v":0,"d":"€ 0.00"}},{"$f":"SUMIFS(GespecificeerdeKosten[Controleer bedrag],GespecificeerdeKosten[G/L-code],OverzichtMaandelijkseOnkosten[[#This Row],[G/L-code]],GespecificeerdeKosten[Factuurdatum],\">=\"&F$3,GespecificeerdeKosten[Factuurdatum],\"<=\"&F$4)+SUMIFS(Anders[Controleer bedrag],Anders[G/L-code],OverzichtMaandelijkseOnkosten[[#This Row],[G/L-code]],Anders[Aanvraag datumcontrole gestart],\">=\"&DATEVALUE(OverzichtMaandelijkseOnkosten[[#Headers],[Maart]]&\" 1, \"&_JAAR),Anders[Aanvraag datumcontrole gestart],\"<=\"&F$4)","v":{"v":0,"d":"€ 0.00"}},{"$f":"SUMIFS(GespecificeerdeKosten[Controleer bedrag],GespecificeerdeKosten[G/L-code],OverzichtMaandelijkseOnkosten[[#This Row],[G/L-code]],GespecificeerdeKosten[Factuurdatum],\">=\"&G$3,GespecificeerdeKosten[Factuurdatum],\"<=\"&G$4)+SUMIFS(Anders[Controleer bedrag],Anders[G/L-code],OverzichtMaandelijkseOnkosten[[#This Row],[G/L-code]],Anders[Aanvraag datumcontrole gestart],\">=\"&DATEVALUE(OverzichtMaandelijkseOnkosten[[#Headers],[April]]&\" 1, \"&_JAAR),Anders[Aanvraag datumcontrole gestart],\"<=\"&G$4)","v":{"v":0,"d":"€ 0.00"}},{"$f":"SUMIFS(GespecificeerdeKosten[Controleer bedrag],GespecificeerdeKosten[G/L-code],OverzichtMaandelijkseOnkosten[[#This Row],[G/L-code]],GespecificeerdeKosten[Factuurdatum],\">=\"&H$3,GespecificeerdeKosten[Factuurdatum],\"<=\"&H$4)+SUMIFS(Anders[Controleer bedrag],Anders[G/L-code],OverzichtMaandelijkseOnkosten[[#This Row],[G/L-code]],Anders[Aanvraag datumcontrole gestart],\">=\"&DATEVALUE(OverzichtMaandelijkseOnkosten[[#Headers],[Mei]]&\" 1, \"&_JAAR),Anders[Aanvraag datumcontrole gestart],\"<=\"&H$4)","v":{"v":0,"d":"€ 0.00"}},{"$f":"SUMIFS(GespecificeerdeKosten[Controleer bedrag],GespecificeerdeKosten[G/L-code],OverzichtMaandelijkseOnkosten[[#This Row],[G/L-code]],GespecificeerdeKosten[Factuurdatum],\">=\"&I$3,GespecificeerdeKosten[Factuurdatum],\"<=\"&I$4)+SUMIFS(Anders[Controleer bedrag],Anders[G/L-code],OverzichtMaandelijkseOnkosten[[#This Row],[G/L-code]],Anders[Aanvraag datumcontrole gestart],\">=\"&DATEVALUE(OverzichtMaandelijkseOnkosten[[#Headers],[Juni]]&\" 1, \"&_JAAR),Anders[Aanvraag datumcontrole gestart],\"<=\"&I$4)","v":{"v":0,"d":"€ 0.00"}},{"$f":"SUMIFS(GespecificeerdeKosten[Controleer bedrag],GespecificeerdeKosten[G/L-code],OverzichtMaandelijkseOnkosten[[#This Row],[G/L-code]],GespecificeerdeKosten[Factuurdatum],\">=\"&J$3,GespecificeerdeKosten[Factuurdatum],\"<=\"&J$4)+SUMIFS(Anders[Controleer bedrag],Anders[G/L-code],OverzichtMaandelijkseOnkosten[[#This Row],[G/L-code]],Anders[Aanvraag datumcontrole gestart],\">=\"&DATEVALUE(OverzichtMaandelijkseOnkosten[[#Headers],[Juli]]&\" 1, \"&_JAAR),Anders[Aanvraag datumcontrole gestart],\"<=\"&J$4)","v":{"v":0,"d":"€ 0.00"}},{"$f":"SUMIFS(GespecificeerdeKosten[Controleer bedrag],GespecificeerdeKosten[G/L-code],OverzichtMaandelijkseOnkosten[[#This Row],[G/L-code]],GespecificeerdeKosten[Factuurdatum],\">=\"&K$3,GespecificeerdeKosten[Factuurdatum],\"<=\"&K$4)+SUMIFS(Anders[Controleer bedrag],Anders[G/L-code],OverzichtMaandelijkseOnkosten[[#This Row],[G/L-code]],Anders[Aanvraag datumcontrole gestart],\">=\"&DATEVALUE(OverzichtMaandelijkseOnkosten[[#Headers],[Augustus]]&\" 1, \"&_JAAR),Anders[Aanvraag datumcontrole gestart],\"<=\"&K$4)","v":{"v":0,"d":"€ 0.00"}},{"$f":"SUMIFS(GespecificeerdeKosten[Controleer bedrag],GespecificeerdeKosten[G/L-code],OverzichtMaandelijkseOnkosten[[#This Row],[G/L-code]],GespecificeerdeKosten[Factuurdatum],\">=\"&L$3,GespecificeerdeKosten[Factuurdatum],\"<=\"&L$4)+SUMIFS(Anders[Controleer bedrag],Anders[G/L-code],OverzichtMaandelijkseOnkosten[[#This Row],[G/L-code]],Anders[Aanvraag datumcontrole gestart],\">=\"&DATEVALUE(OverzichtMaandelijkseOnkosten[[#Headers],[September]]&\" 1, \"&_JAAR),Anders[Aanvraag datumcontrole gestart],\"<=\"&L$4)","v":{"v":0,"d":"€ 0.00"}},{"$f":"SUMIFS(GespecificeerdeKosten[Controleer bedrag],GespecificeerdeKosten[G/L-code],OverzichtMaandelijkseOnkosten[[#This Row],[G/L-code]],GespecificeerdeKosten[Factuurdatum],\">=\"&M$3,GespecificeerdeKosten[Factuurdatum],\"<=\"&M$4)+SUMIFS(Anders[Controleer bedrag],Anders[G/L-code],OverzichtMaandelijkseOnkosten[[#This Row],[G/L-code]],Anders[Aanvraag datumcontrole gestart],\">=\"&DATEVALUE(OverzichtMaandelijkseOnkosten[[#Headers],[Oktober]]&\" 1, \"&_JAAR),Anders[Aanvraag datumcontrole gestart],\"<=\"&M$4)","v":{"v":0,"d":"€ 0.00"}},{"$f":"SUMIFS(GespecificeerdeKosten[Controleer bedrag],GespecificeerdeKosten[G/L-code],OverzichtMaandelijkseOnkosten[[#This Row],[G/L-code]],GespecificeerdeKosten[Factuurdatum],\">=\"&N$3,GespecificeerdeKosten[Factuurdatum],\"<=\"&N$4)+SUMIFS(Anders[Controleer bedrag],Anders[G/L-code],OverzichtMaandelijkseOnkosten[[#This Row],[G/L-code]],Anders[Aanvraag datumcontrole gestart],\">=\"&DATEVALUE(OverzichtMaandelijkseOnkosten[[#Headers],[November]]&\" 1, \"&_JAAR),Anders[Aanvraag datumcontrole gestart],\"<=\"&N$4)","v":{"v":0,"d":"€ 0.00"}},{"$f":"SUMIFS(GespecificeerdeKosten[Controleer bedrag],GespecificeerdeKosten[G/L-code],OverzichtMaandelijkseOnkosten[[#This Row],[G/L-code]],GespecificeerdeKosten[Factuurdatum],\">=\"&O$3,GespecificeerdeKosten[Factuurdatum],\"<=\"&O$4)+SUMIFS(Anders[Controleer bedrag],Anders[G/L-code],OverzichtMaandelijkseOnkosten[[#This Row],[G/L-code]],Anders[Aanvraag datumcontrole gestart],\">=\"&DATEVALUE(OverzichtMaandelijkseOnkosten[[#Headers],[December]]&\" 1, \"&_JAAR),Anders[Aanvraag datumcontrole gestart],\"<=\"&O$4)","v":{"v":0,"d":"€ 0.00"}},{"$f":"SUM(OverzichtMaandelijkseOnkosten[[#This Row],[Januari]:[December]])","v":{"v":0,"d":"€ 0.00"}}]
[null,6000,"Klantuitgaven",{"$f":"SUMIFS(GespecificeerdeKosten[Controleer bedrag],GespecificeerdeKosten[G/L-code],OverzichtMaandelijkseOnkosten[[#This Row],[G/L-code]],GespecificeerdeKosten[Factuurdatum],\">=\"&D$3,GespecificeerdeKosten[Factuurdatum],\"<=\"&D$4)+SUMIFS(Anders[Controleer bedrag],Anders[G/L-code],OverzichtMaandelijkseOnkosten[[#This Row],[G/L-code]],Anders[Aanvraag datumcontrole gestart],\">=\"&DATEVALUE(OverzichtMaandelijkseOnkosten[[#Headers],[Januari]]&\" 1, \"&_JAAR),Anders[Aanvraag datumcontrole gestart],\"<=\"&D$4)","v":{"v":0,"d":"€ 0.00"}},{"$f":"SUMIFS(GespecificeerdeKosten[Controleer bedrag],GespecificeerdeKosten[G/L-code],OverzichtMaandelijkseOnkosten[[#This Row],[G/L-code]],GespecificeerdeKosten[Factuurdatum],\">=\"&E$3,GespecificeerdeKosten[Factuurdatum],\"<=\"&E$4)+SUMIFS(Anders[Controleer bedrag],Anders[G/L-code],OverzichtMaandelijkseOnkosten[[#This Row],[G/L-code]],Anders[Aanvraag datumcontrole gestart],\">=\"&DATEVALUE(OverzichtMaandelijkseOnkosten[[#Headers],[Februari]]&\" 1, \"&_JAAR),Anders[Aanvraag datumcontrole gestart],\"<=\"&E$4)","v":{"v":0,"d":"€ 0.00"}},{"$f":"SUMIFS(GespecificeerdeKosten[Controleer bedrag],GespecificeerdeKosten[G/L-code],OverzichtMaandelijkseOnkosten[[#This Row],[G/L-code]],GespecificeerdeKosten[Factuurdatum],\">=\"&F$3,GespecificeerdeKosten[Factuurdatum],\"<=\"&F$4)+SUMIFS(Anders[Controleer bedrag],Anders[G/L-code],OverzichtMaandelijkseOnkosten[[#This Row],[G/L-code]],Anders[Aanvraag datumcontrole gestart],\">=\"&DATEVALUE(OverzichtMaandelijkseOnkosten[[#Headers],[Maart]]&\" 1, \"&_JAAR),Anders[Aanvraag datumcontrole gestart],\"<=\"&F$4)","v":{"v":0,"d":"€ 0.00"}},{"$f":"SUMIFS(GespecificeerdeKosten[Controleer bedrag],GespecificeerdeKosten[G/L-code],OverzichtMaandelijkseOnkosten[[#This Row],[G/L-code]],GespecificeerdeKosten[Factuurdatum],\">=\"&G$3,GespecificeerdeKosten[Factuurdatum],\"<=\"&G$4)+SUMIFS(Anders[Controleer bedrag],Anders[G/L-code],OverzichtMaandelijkseOnkosten[[#This Row],[G/L-code]],Anders[Aanvraag datumcontrole gestart],\">=\"&DATEVALUE(OverzichtMaandelijkseOnkosten[[#Headers],[April]]&\" 1, \"&_JAAR),Anders[Aanvraag datumcontrole gestart],\"<=\"&G$4)","v":{"v":0,"d":"€ 0.00"}},{"$f":"SUMIFS(GespecificeerdeKosten[Controleer bedrag],GespecificeerdeKosten[G/L-code],OverzichtMaandelijkseOnkosten[[#This Row],[G/L-code]],GespecificeerdeKosten[Factuurdatum],\">=\"&H$3,GespecificeerdeKosten[Factuurdatum],\"<=\"&H$4)+SUMIFS(Anders[Controleer bedrag],Anders[G/L-code],OverzichtMaandelijkseOnkosten[[#This Row],[G/L-code]],Anders[Aanvraag datumcontrole gestart],\">=\"&DATEVALUE(OverzichtMaandelijkseOnkosten[[#Headers],[Mei]]&\" 1, \"&_JAAR),Anders[Aanvraag datumcontrole gestart],\"<=\"&H$4)","v":{"v":0,"d":"€ 0.00"}},{"$f":"SUMIFS(GespecificeerdeKosten[Controleer bedrag],GespecificeerdeKosten[G/L-code],OverzichtMaandelijkseOnkosten[[#This Row],[G/L-code]],GespecificeerdeKosten[Factuurdatum],\">=\"&I$3,GespecificeerdeKosten[Factuurdatum],\"<=\"&I$4)+SUMIFS(Anders[Controleer bedrag],Anders[G/L-code],OverzichtMaandelijkseOnkosten[[#This Row],[G/L-code]],Anders[Aanvraag datumcontrole gestart],\">=\"&DATEVALUE(OverzichtMaandelijkseOnkosten[[#Headers],[Juni]]&\" 1, \"&_JAAR),Anders[Aanvraag datumcontrole gestart],\"<=\"&I$4)","v":{"v":0,"d":"€ 0.00"}},{"$f":"SUMIFS(GespecificeerdeKosten[Controleer bedrag],GespecificeerdeKosten[G/L-code],OverzichtMaandelijkseOnkosten[[#This Row],[G/L-code]],GespecificeerdeKosten[Factuurdatum],\">=\"&J$3,GespecificeerdeKosten[Factuurdatum],\"<=\"&J$4)+SUMIFS(Anders[Controleer bedrag],Anders[G/L-code],OverzichtMaandelijkseOnkosten[[#This Row],[G/L-code]],Anders[Aanvraag datumcontrole gestart],\">=\"&DATEVALUE(OverzichtMaandelijkseOnkosten[[#Headers],[Juli]]&\" 1, \"&_JAAR),Anders[Aanvraag datumcontrole gestart],\"<=\"&J$4)","v":{"v":0,"d":"€ 0.00"}},{"$f":"SUMIFS(GespecificeerdeKosten[Controleer bedrag],GespecificeerdeKosten[G/L-code],OverzichtMaandelijkseOnkosten[[#This Row],[G/L-code]],GespecificeerdeKosten[Factuurdatum],\">=\"&K$3,GespecificeerdeKosten[Factuurdatum],\"<=\"&K$4)+SUMIFS(Anders[Controleer bedrag],Anders[G/L-code],OverzichtMaandelijkseOnkosten[[#This Row],[G/L-code]],Anders[Aanvraag datumcontrole gestart],\">=\"&DATEVALUE(OverzichtMaandelijkseOnkosten[[#Headers],[Augustus]]&\" 1, \"&_JAAR),Anders[Aanvraag datumcontrole gestart],\"<=\"&K$4)","v":{"v":0,"d":"€ 0.00"}},{"$f":"SUMIFS(GespecificeerdeKosten[Controleer bedrag],GespecificeerdeKosten[G/L-code],OverzichtMaandelijkseOnkosten[[#This Row],[G/L-code]],GespecificeerdeKosten[Factuurdatum],\">=\"&L$3,GespecificeerdeKosten[Factuurdatum],\"<=\"&L$4)+SUMIFS(Anders[Controleer bedrag],Anders[G/L-code],OverzichtMaandelijkseOnkosten[[#This Row],[G/L-code]],Anders[Aanvraag datumcontrole gestart],\">=\"&DATEVALUE(OverzichtMaandelijkseOnkosten[[#Headers],[September]]&\" 1, \"&_JAAR),Anders[Aanvraag datumcontrole gestart],\"<=\"&L$4)","v":{"v":0,"d":"€ 0.00"}},{"$f":"SUMIFS(GespecificeerdeKosten[Controleer bedrag],GespecificeerdeKosten[G/L-code],OverzichtMaandelijkseOnkosten[[#This Row],[G/L-code]],GespecificeerdeKosten[Factuurdatum],\">=\"&M$3,GespecificeerdeKosten[Factuurdatum],\"<=\"&M$4)+SUMIFS(Anders[Controleer bedrag],Anders[G/L-code],OverzichtMaandelijkseOnkosten[[#This Row],[G/L-code]],Anders[Aanvraag datumcontrole gestart],\">=\"&DATEVALUE(OverzichtMaandelijkseOnkosten[[#Headers],[Oktober]]&\" 1, \"&_JAAR),Anders[Aanvraag datumcontrole gestart],\"<=\"&M$4)","v":{"v":0,"d":"€ 0.00"}},{"$f":"SUMIFS(GespecificeerdeKosten[Controleer bedrag],GespecificeerdeKosten[G/L-code],OverzichtMaandelijkseOnkosten[[#This Row],[G/L-code]],GespecificeerdeKosten[Factuurdatum],\">=\"&N$3,GespecificeerdeKosten[Factuurdatum],\"<=\"&N$4)+SUMIFS(Anders[Controleer bedrag],Anders[G/L-code],OverzichtMaandelijkseOnkosten[[#This Row],[G/L-code]],Anders[Aanvraag datumcontrole gestart],\">=\"&DATEVALUE(OverzichtMaandelijkseOnkosten[[#Headers],[November]]&\" 1, \"&_JAAR),Anders[Aanvraag datumcontrole gestart],\"<=\"&N$4)","v":{"v":0,"d":"€ 0.00"}},{"$f":"SUMIFS(GespecificeerdeKosten[Controleer bedrag],GespecificeerdeKosten[G/L-code],OverzichtMaandelijkseOnkosten[[#This Row],[G/L-code]],GespecificeerdeKosten[Factuurdatum],\">=\"&O$3,GespecificeerdeKosten[Factuurdatum],\"<=\"&O$4)+SUMIFS(Anders[Controleer bedrag],Anders[G/L-code],OverzichtMaandelijkseOnkosten[[#This Row],[G/L-code]],Anders[Aanvraag datumcontrole gestart],\">=\"&DATEVALUE(OverzichtMaandelijkseOnkosten[[#Headers],[December]]&\" 1, \"&_JAAR),Anders[Aanvraag datumcontrole gestart],\"<=\"&O$4)","v":{"v":0,"d":"€ 0.00"}},{"$f":"SUM(OverzichtMaandelijkseOnkosten[[#This Row],[Januari]:[December]])","v":{"v":0,"d":"€ 0.00"}}]
[null,7000,"Computers",{"$f":"SUMIFS(GespecificeerdeKosten[Controleer bedrag],GespecificeerdeKosten[G/L-code],OverzichtMaandelijkseOnkosten[[#This Row],[G/L-code]],GespecificeerdeKosten[Factuurdatum],\">=\"&D$3,GespecificeerdeKosten[Factuurdatum],\"<=\"&D$4)+SUMIFS(Anders[Controleer bedrag],Anders[G/L-code],OverzichtMaandelijkseOnkosten[[#This Row],[G/L-code]],Anders[Aanvraag datumcontrole gestart],\">=\"&DATEVALUE(OverzichtMaandelijkseOnkosten[[#Headers],[Januari]]&\" 1, \"&_JAAR),Anders[Aanvraag datumcontrole gestart],\"<=\"&D$4)","v":{"v":0,"d":"€ 0.00"}},{"$f":"SUMIFS(GespecificeerdeKosten[Controleer bedrag],GespecificeerdeKosten[G/L-code],OverzichtMaandelijkseOnkosten[[#This Row],[G/L-code]],GespecificeerdeKosten[Factuurdatum],\">=\"&E$3,GespecificeerdeKosten[Factuurdatum],\"<=\"&E$4)+SUMIFS(Anders[Controleer bedrag],Anders[G/L-code],OverzichtMaandelijkseOnkosten[[#This Row],[G/L-code]],Anders[Aanvraag datumcontrole gestart],\">=\"&DATEVALUE(OverzichtMaandelijkseOnkosten[[#Headers],[Februari]]&\" 1, \"&_JAAR),Anders[Aanvraag datumcontrole gestart],\"<=\"&E$4)","v":{"v":0,"d":"€ 0.00"}},{"$f":"SUMIFS(GespecificeerdeKosten[Controleer bedrag],GespecificeerdeKosten[G/L-code],OverzichtMaandelijkseOnkosten[[#This Row],[G/L-code]],GespecificeerdeKosten[Factuurdatum],\">=\"&F$3,GespecificeerdeKosten[Factuurdatum],\"<=\"&F$4)+SUMIFS(Anders[Controleer bedrag],Anders[G/L-code],OverzichtMaandelijkseOnkosten[[#This Row],[G/L-code]],Anders[Aanvraag datumcontrole gestart],\">=\"&DATEVALUE(OverzichtMaandelijkseOnkosten[[#Headers],[Maart]]&\" 1, \"&_JAAR),Anders[Aanvraag datumcontrole gestart],\"<=\"&F$4)","v":{"v":0,"d":"€ 0.00"}},{"$f":"SUMIFS(GespecificeerdeKosten[Controleer bedrag],GespecificeerdeKosten[G/L-code],OverzichtMaandelijkseOnkosten[[#This Row],[G/L-code]],GespecificeerdeKosten[Factuurdatum],\">=\"&G$3,GespecificeerdeKosten[Factuurdatum],\"<=\"&G$4)+SUMIFS(Anders[Controleer bedrag],Anders[G/L-code],OverzichtMaandelijkseOnkosten[[#This Row],[G/L-code]],Anders[Aanvraag datumcontrole gestart],\">=\"&DATEVALUE(OverzichtMaandelijkseOnkosten[[#Headers],[April]]&\" 1, \"&_JAAR),Anders[Aanvraag datumcontrole gestart],\"<=\"&G$4)","v":{"v":0,"d":"€ 0.00"}},{"$f":"SUMIFS(GespecificeerdeKosten[Controleer bedrag],GespecificeerdeKosten[G/L-code],OverzichtMaandelijkseOnkosten[[#This Row],[G/L-code]],GespecificeerdeKosten[Factuurdatum],\">=\"&H$3,GespecificeerdeKosten[Factuurdatum],\"<=\"&H$4)+SUMIFS(Anders[Controleer bedrag],Anders[G/L-code],OverzichtMaandelijkseOnkosten[[#This Row],[G/L-code]],Anders[Aanvraag datumcontrole gestart],\">=\"&DATEVALUE(OverzichtMaandelijkseOnkosten[[#Headers],[Mei]]&\" 1, \"&_JAAR),Anders[Aanvraag datumcontrole gestart],\"<=\"&H$4)","v":{"v":0,"d":"€ 0.00"}},{"$f":"SUMIFS(GespecificeerdeKosten[Controleer bedrag],GespecificeerdeKosten[G/L-code],OverzichtMaandelijkseOnkosten[[#This Row],[G/L-code]],GespecificeerdeKosten[Factuurdatum],\">=\"&I$3,GespecificeerdeKosten[Factuurdatum],\"<=\"&I$4)+SUMIFS(Anders[Controleer bedrag],Anders[G/L-code],OverzichtMaandelijkseOnkosten[[#This Row],[G/L-code]],Anders[Aanvraag datumcontrole gestart],\">=\"&DATEVALUE(OverzichtMaandelijkseOnkosten[[#Headers],[Juni]]&\" 1, \"&_JAAR),Anders[Aanvraag datumcontrole gestart],\"<=\"&I$4)","v":{"v":0,"d":"€ 0.00"}},{"$f":"SUMIFS(GespecificeerdeKosten[Controleer bedrag],GespecificeerdeKosten[G/L-code],OverzichtMaandelijkseOnkosten[[#This Row],[G/L-code]],GespecificeerdeKosten[Factuurdatum],\">=\"&J$3,GespecificeerdeKosten[Factuurdatum],\"<=\"&J$4)+SUMIFS(Anders[Controleer bedrag],Anders[G/L-code],OverzichtMaandelijkseOnkosten[[#This Row],[G/L-code]],Anders[Aanvraag datumcontrole gestart],\">=\"&DATEVALUE(OverzichtMaandelijkseOnkosten[[#Headers],[Juli]]&\" 1, \"&_JAAR),Anders[Aanvraag datumcontrole gestart],\"<=\"&J$4)","v":{"v":0,"d":"€ 0.00"}},{"$f":"SUMIFS(GespecificeerdeKosten[Controleer bedrag],GespecificeerdeKosten[G/L-code],OverzichtMaandelijkseOnkosten[[#This Row],[G/L-code]],GespecificeerdeKosten[Factuurdatum],\">=\"&K$3,GespecificeerdeKosten[Factuurdatum],\"<=\"&K$4)+SUMIFS(Anders[Controleer bedrag],Anders[G/L-code],OverzichtMaandelijkseOnkosten[[#This Row],[G/L-code]],Anders[Aanvraag datumcontrole gestart],\">=\"&DATEVALUE(OverzichtMaandelijkseOnkosten[[#Headers],[Augustus]]&\" 1, \"&_JAAR),Anders[Aanvraag datumcontrole gestart],\"<=\"&K$4)","v":{"v":0,"d":"€ 0.00"}},{"$f":"SUMIFS(GespecificeerdeKosten[Controleer bedrag],GespecificeerdeKosten[G/L-code],OverzichtMaandelijkseOnkosten[[#This Row],[G/L-code]],GespecificeerdeKosten[Factuurdatum],\">=\"&L$3,GespecificeerdeKosten[Factuurdatum],\"<=\"&L$4)+SUMIFS(Anders[Controleer bedrag],Anders[G/L-code],OverzichtMaandelijkseOnkosten[[#This Row],[G/L-code]],Anders[Aanvraag datumcontrole gestart],\">=\"&DATEVALUE(OverzichtMaandelijkseOnkosten[[#Headers],[September]]&\" 1, \"&_JAAR),Anders[Aanvraag datumcontrole gestart],\"<=\"&L$4)","v":{"v":0,"d":"€ 0.00"}},{"$f":"SUMIFS(GespecificeerdeKosten[Controleer bedrag],GespecificeerdeKosten[G/L-code],OverzichtMaandelijkseOnkosten[[#This Row],[G/L-code]],GespecificeerdeKosten[Factuurdatum],\">=\"&M$3,GespecificeerdeKosten[Factuurdatum],\"<=\"&M$4)+SUMIFS(Anders[Controleer bedrag],Anders[G/L-code],OverzichtMaandelijkseOnkosten[[#This Row],[G/L-code]],Anders[Aanvraag datumcontrole gestart],\">=\"&DATEVALUE(OverzichtMaandelijkseOnkosten[[#Headers],[Oktober]]&\" 1, \"&_JAAR),Anders[Aanvraag datumcontrole gestart],\"<=\"&M$4)","v":{"v":0,"d":"€ 0.00"}},{"$f":"SUMIFS(GespecificeerdeKosten[Controleer bedrag],GespecificeerdeKosten[G/L-code],OverzichtMaandelijkseOnkosten[[#This Row],[G/L-code]],GespecificeerdeKosten[Factuurdatum],\">=\"&N$3,GespecificeerdeKosten[Factuurdatum],\"<=\"&N$4)+SUMIFS(Anders[Controleer bedrag],Anders[G/L-code],OverzichtMaandelijkseOnkosten[[#This Row],[G/L-code]],Anders[Aanvraag datumcontrole gestart],\">=\"&DATEVALUE(OverzichtMaandelijkseOnkosten[[#Headers],[November]]&\" 1, \"&_JAAR),Anders[Aanvraag datumcontrole gestart],\"<=\"&N$4)","v":{"v":0,"d":"€ 0.00"}},{"$f":"SUMIFS(GespecificeerdeKosten[Controleer bedrag],GespecificeerdeKosten[G/L-code],OverzichtMaandelijkseOnkosten[[#This Row],[G/L-code]],GespecificeerdeKosten[Factuurdatum],\">=\"&O$3,GespecificeerdeKosten[Factuurdatum],\"<=\"&O$4)+SUMIFS(Anders[Controleer bedrag],Anders[G/L-code],OverzichtMaandelijkseOnkosten[[#This Row],[G/L-code]],Anders[Aanvraag datumcontrole gestart],\">=\"&DATEVALUE(OverzichtMaandelijkseOnkosten[[#Headers],[December]]&\" 1, \"&_JAAR),Anders[Aanvraag datumcontrole gestart],\"<=\"&O$4)","v":{"v":0,"d":"€ 0.00"}},{"$f":"SUM(OverzichtMaandelijkseOnkosten[[#This Row],[Januari]:[December]])","v":{"v":0,"d":"€ 0.00"}}]
[null,8000,"Medisch zorgregeling",{"$f":"SUMIFS(GespecificeerdeKosten[Controleer bedrag],GespecificeerdeKosten[G/L-code],OverzichtMaandelijkseOnkosten[[#This Row],[G/L-code]],GespecificeerdeKosten[Factuurdatum],\">=\"&D$3,GespecificeerdeKosten[Factuurdatum],\"<=\"&D$4)+SUMIFS(Anders[Controleer bedrag],Anders[G/L-code],OverzichtMaandelijkseOnkosten[[#This Row],[G/L-code]],Anders[Aanvraag datumcontrole gestart],\">=\"&DATEVALUE(OverzichtMaandelijkseOnkosten[[#Headers],[Januari]]&\" 1, \"&_JAAR),Anders[Aanvraag datumcontrole gestart],\"<=\"&D$4)","v":{"v":0,"d":"€ 0.00"}},{"$f":"SUMIFS(GespecificeerdeKosten[Controleer bedrag],GespecificeerdeKosten[G/L-code],OverzichtMaandelijkseOnkosten[[#This Row],[G/L-code]],GespecificeerdeKosten[Factuurdatum],\">=\"&E$3,GespecificeerdeKosten[Factuurdatum],\"<=\"&E$4)+SUMIFS(Anders[Controleer bedrag],Anders[G/L-code],OverzichtMaandelijkseOnkosten[[#This Row],[G/L-code]],Anders[Aanvraag datumcontrole gestart],\">=\"&DATEVALUE(OverzichtMaandelijkseOnkosten[[#Headers],[Februari]]&\" 1, \"&_JAAR),Anders[Aanvraag datumcontrole gestart],\"<=\"&E$4)","v":{"v":0,"d":"€ 0.00"}},{"$f":"SUMIFS(GespecificeerdeKosten[Controleer bedrag],GespecificeerdeKosten[G/L-code],OverzichtMaandelijkseOnkosten[[#This Row],[G/L-code]],GespecificeerdeKosten[Factuurdatum],\">=\"&F$3,GespecificeerdeKosten[Factuurdatum],\"<=\"&F$4)+SUMIFS(Anders[Controleer bedrag],Anders[G/L-code],OverzichtMaandelijkseOnkosten[[#This Row],[G/L-code]],Anders[Aanvraag datumcontrole gestart],\">=\"&DATEVALUE(OverzichtMaandelijkseOnkosten[[#Headers],[Maart]]&\" 1, \"&_JAAR),Anders[Aanvraag datumcontrole gestart],\"<=\"&F$4)","v":{"v":0,"d":"€ 0.00"}},{"$f":"SUMIFS(GespecificeerdeKosten[Controleer bedrag],GespecificeerdeKosten[G/L-code],OverzichtMaandelijkseOnkosten[[#This Row],[G/L-code]],GespecificeerdeKosten[Factuurdatum],\">=\"&G$3,GespecificeerdeKosten[Factuurdatum],\"<=\"&G$4)+SUMIFS(Anders[Controleer bedrag],Anders[G/L-code],OverzichtMaandelijkseOnkosten[[#This Row],[G/L-code]],Anders[Aanvraag datumcontrole gestart],\">=\"&DATEVALUE(OverzichtMaandelijkseOnkosten[[#Headers],[April]]&\" 1, \"&_JAAR),Anders[Aanvraag datumcontrole gestart],\"<=\"&G$4)","v":{"v":0,"d":"€ 0.00"}},{"$f":"SUMIFS(GespecificeerdeKosten[Controleer bedrag],GespecificeerdeKosten[G/L-code],OverzichtMaandelijkseOnkosten[[#This Row],[G/L-code]],GespecificeerdeKosten[Factuurdatum],\">=\"&H$3,GespecificeerdeKosten[Factuurdatum],\"<=\"&H$4)+SUMIFS(Anders[Controleer bedrag],Anders[G/L-code],OverzichtMaandelijkseOnkosten[[#This Row],[G/L-code]],Anders[Aanvraag datumcontrole gestart],\">=\"&DATEVALUE(OverzichtMaandelijkseOnkosten[[#Headers],[Mei]]&\" 1, \"&_JAAR),Anders[Aanvraag datumcontrole gestart],\"<=\"&H$4)","v":{"v":0,"d":"€ 0.00"}},{"$f":"SUMIFS(GespecificeerdeKosten[Controleer bedrag],GespecificeerdeKosten[G/L-code],OverzichtMaandelijkseOnkosten[[#This Row],[G/L-code]],GespecificeerdeKosten[Factuurdatum],\">=\"&I$3,GespecificeerdeKosten[Factuurdatum],\"<=\"&I$4)+SUMIFS(Anders[Controleer bedrag],Anders[G/L-code],OverzichtMaandelijkseOnkosten[[#This Row],[G/L-code]],Anders[Aanvraag datumcontrole gestart],\">=\"&DATEVALUE(OverzichtMaandelijkseOnkosten[[#Headers],[Juni]]&\" 1, \"&_JAAR),Anders[Aanvraag datumcontrole gestart],\"<=\"&I$4)","v":{"v":0,"d":"€ 0.00"}},{"$f":"SUMIFS(GespecificeerdeKosten[Controleer bedrag],GespecificeerdeKosten[G/L-code],OverzichtMaandelijkseOnkosten[[#This Row],[G/L-code]],GespecificeerdeKosten[Factuurdatum],\">=\"&J$3,GespecificeerdeKosten[Factuurdatum],\"<=\"&J$4)+SUMIFS(Anders[Controleer bedrag],Anders[G/L-code],OverzichtMaandelijkseOnkosten[[#This Row],[G/L-code]],Anders[Aanvraag datumcontrole gestart],\">=\"&DATEVALUE(OverzichtMaandelijkseOnkosten[[#Headers],[Juli]]&\" 1, \"&_JAAR),Anders[Aanvraag datumcontrole gestart],\"<=\"&J$4)","v":{"v":0,"d":"€ 0.00"}},{"$f":"SUMIFS(GespecificeerdeKosten[Controleer bedrag],GespecificeerdeKosten[G/L-code],OverzichtMaandelijkseOnkosten[[#This Row],[G/L-code]],GespecificeerdeKosten[Factuurdatum],\">=\"&K$3,GespecificeerdeKosten[Factuurdatum],\"<=\"&K$4)+SUMIFS(Anders[Controleer bedrag],Anders[G/L-code],OverzichtMaandelijkseOnkosten[[#This Row],[G/L-code]],Anders[Aanvraag datumcontrole gestart],\">=\"&DATEVALUE(OverzichtMaandelijkseOnkosten[[#Headers],[Augustus]]&\" 1, \"&_JAAR),Anders[Aanvraag datumcontrole gestart],\"<=\"&K$4)","v":{"v":0,"d":"€ 0.00"}},{"$f":"SUMIFS(GespecificeerdeKosten[Controleer bedrag],GespecificeerdeKosten[G/L-code],OverzichtMaandelijkseOnkosten[[#This Row],[G/L-code]],GespecificeerdeKosten[Factuurdatum],\">=\"&L$3,GespecificeerdeKosten[Factuurdatum],\"<=\"&L$4)+SUMIFS(Anders[Controleer bedrag],Anders[G/L-code],OverzichtMaandelijkseOnkosten[[#This Row],[G/L-code]],Anders[Aanvraag datumcontrole gestart],\">=\"&DATEVALUE(OverzichtMaandelijkseOnkosten[[#Headers],[September]]&\" 1, \"&_JAAR),Anders[Aanvraag datumcontrole gestart],\"<=\"&L$4)","v":{"v":0,"d":"€ 0.00"}},{"$f":"SUMIFS(GespecificeerdeKosten[Controleer bedrag],GespecificeerdeKosten[G/L-code],OverzichtMaandelijkseOnkosten[[#This Row],[G/L-code]],GespecificeerdeKosten[Factuurdatum],\">=\"&M$3,GespecificeerdeKosten[Factuurdatum],\"<=\"&M$4)+SUMIFS(Anders[Controleer bedrag],Anders[G/L-code],OverzichtMaandelijkseOnkosten[[#This Row],[G/L-code]],Anders[Aanvraag datumcontrole gestart],\">=\"&DATEVALUE(OverzichtMaandelijkseOnkosten[[#Headers],[Oktober]]&\" 1, \"&_JAAR),Anders[Aanvraag datumcontrole gestart],\"<=\"&M$4)","v":{"v":0,"d":"€ 0.00"}},{"$f":"SUMIFS(GespecificeerdeKosten[Controleer bedrag],GespecificeerdeKosten[G/L-code],OverzichtMaandelijkseOnkosten[[#This Row],[G/L-code]],GespecificeerdeKosten[Factuurdatum],\">=\"&N$3,GespecificeerdeKosten[Factuurdatum],\"<=\"&N$4)+SUMIFS(Anders[Controleer bedrag],Anders[G/L-code],OverzichtMaandelijkseOnkosten[[#This Row],[G/L-code]],Anders[Aanvraag datumcontrole gestart],\">=\"&DATEVALUE(OverzichtMaandelijkseOnkosten[[#Headers],[November]]&\" 1, \"&_JAAR),Anders[Aanvraag datumcontrole gestart],\"<=\"&N$4)","v":{"v":0,"d":"€ 0.00"}},{"$f":"SUMIFS(GespecificeerdeKosten[Controleer bedrag],GespecificeerdeKosten[G/L-code],OverzichtMaandelijkseOnkosten[[#This Row],[G/L-code]],GespecificeerdeKosten[Factuurdatum],\">=\"&O$3,GespecificeerdeKosten[Factuurdatum],\"<=\"&O$4)+SUMIFS(Anders[Controleer bedrag],Anders[G/L-code],OverzichtMaandelijkseOnkosten[[#This Row],[G/L-code]],Anders[Aanvraag datumcontrole gestart],\">=\"&DATEVALUE(OverzichtMaandelijkseOnkosten[[#Headers],[December]]&\" 1, \"&_JAAR),Anders[Aanvraag datumcontrole gestart],\"<=\"&O$4)","v":{"v":0,"d":"€ 0.00"}},{"$f":"SUM(OverzichtMaandelijkseOnkosten[[#This Row],[Januari]:[December]])","v":{"v":0,"d":"€ 0.00"}}]
[null,9000,"Bouwkosten",{"$f":"SUMIFS(GespecificeerdeKosten[Controleer bedrag],GespecificeerdeKosten[G/L-code],OverzichtMaandelijkseOnkosten[[#This Row],[G/L-code]],GespecificeerdeKosten[Factuurdatum],\">=\"&D$3,GespecificeerdeKosten[Factuurdatum],\"<=\"&D$4)+SUMIFS(Anders[Controleer bedrag],Anders[G/L-code],OverzichtMaandelijkseOnkosten[[#This Row],[G/L-code]],Anders[Aanvraag datumcontrole gestart],\">=\"&DATEVALUE(OverzichtMaandelijkseOnkosten[[#Headers],[Januari]]&\" 1, \"&_JAAR),Anders[Aanvraag datumcontrole gestart],\"<=\"&D$4)","v":{"v":0,"d":"€ 0.00"}},{"$f":"SUMIFS(GespecificeerdeKosten[Controleer bedrag],GespecificeerdeKosten[G/L-code],OverzichtMaandelijkseOnkosten[[#This Row],[G/L-code]],GespecificeerdeKosten[Factuurdatum],\">=\"&E$3,GespecificeerdeKosten[Factuurdatum],\"<=\"&E$4)+SUMIFS(Anders[Controleer bedrag],Anders[G/L-code],OverzichtMaandelijkseOnkosten[[#This Row],[G/L-code]],Anders[Aanvraag datumcontrole gestart],\">=\"&DATEVALUE(OverzichtMaandelijkseOnkosten[[#Headers],[Februari]]&\" 1, \"&_JAAR),Anders[Aanvraag datumcontrole gestart],\"<=\"&E$4)","v":{"v":0,"d":"€ 0.00"}},{"$f":"SUMIFS(GespecificeerdeKosten[Controleer bedrag],GespecificeerdeKosten[G/L-code],OverzichtMaandelijkseOnkosten[[#This Row],[G/L-code]],GespecificeerdeKosten[Factuurdatum],\">=\"&F$3,GespecificeerdeKosten[Factuurdatum],\"<=\"&F$4)+SUMIFS(Anders[Controleer bedrag],Anders[G/L-code],OverzichtMaandelijkseOnkosten[[#This Row],[G/L-code]],Anders[Aanvraag datumcontrole gestart],\">=\"&DATEVALUE(OverzichtMaandelijkseOnkosten[[#Headers],[Maart]]&\" 1, \"&_JAAR),Anders[Aanvraag datumcontrole gestart],\"<=\"&F$4)","v":{"v":0,"d":"€ 0.00"}},{"$f":"SUMIFS(GespecificeerdeKosten[Controleer bedrag],GespecificeerdeKosten[G/L-code],OverzichtMaandelijkseOnkosten[[#This Row],[G/L-code]],GespecificeerdeKosten[Factuurdatum],\">=\"&G$3,GespecificeerdeKosten[Factuurdatum],\"<=\"&G$4)+SUMIFS(Anders[Controleer bedrag],Anders[G/L-code],OverzichtMaandelijkseOnkosten[[#This Row],[G/L-code]],Anders[Aanvraag datumcontrole gestart],\">=\"&DATEVALUE(OverzichtMaandelijkseOnkosten[[#Headers],[April]]&\" 1, \"&_JAAR),Anders[Aanvraag datumcontrole gestart],\"<=\"&G$4)","v":{"v":0,"d":"€ 0.00"}},{"$f":"SUMIFS(GespecificeerdeKosten[Controleer bedrag],GespecificeerdeKosten[G/L-code],OverzichtMaandelijkseOnkosten[[#This Row],[G/L-code]],GespecificeerdeKosten[Factuurdatum],\">=\"&H$3,GespecificeerdeKosten[Factuurdatum],\"<=\"&H$4)+SUMIFS(Anders[Controleer bedrag],Anders[G/L-code],OverzichtMaandelijkseOnkosten[[#This Row],[G/L-code]],Anders[Aanvraag datumcontrole gestart],\">=\"&DATEVALUE(OverzichtMaandelijkseOnkosten[[#Headers],[Mei]]&\" 1, \"&_JAAR),Anders[Aanvraag datumcontrole gestart],\"<=\"&H$4)","v":{"v":0,"d":"€ 0.00"}},{"$f":"SUMIFS(GespecificeerdeKosten[Controleer bedrag],GespecificeerdeKosten[G/L-code],OverzichtMaandelijkseOnkosten[[#This Row],[G/L-code]],GespecificeerdeKosten[Factuurdatum],\">=\"&I$3,GespecificeerdeKosten[Factuurdatum],\"<=\"&I$4)+SUMIFS(Anders[Controleer bedrag],Anders[G/L-code],OverzichtMaandelijkseOnkosten[[#This Row],[G/L-code]],Anders[Aanvraag datumcontrole gestart],\">=\"&DATEVALUE(OverzichtMaandelijkseOnkosten[[#Headers],[Juni]]&\" 1, \"&_JAAR),Anders[Aanvraag datumcontrole gestart],\"<=\"&I$4)","v":{"v":0,"d":"€ 0.00"}},{"$f":"SUMIFS(GespecificeerdeKosten[Controleer bedrag],GespecificeerdeKosten[G/L-code],OverzichtMaandelijkseOnkosten[[#This Row],[G/L-code]],GespecificeerdeKosten[Factuurdatum],\">=\"&J$3,GespecificeerdeKosten[Factuurdatum],\"<=\"&J$4)+SUMIFS(Anders[Controleer bedrag],Anders[G/L-code],OverzichtMaandelijkseOnkosten[[#This Row],[G/L-code]],Anders[Aanvraag datumcontrole gestart],\">=\"&DATEVALUE(OverzichtMaandelijkseOnkosten[[#Headers],[Juli]]&\" 1, \"&_JAAR),Anders[Aanvraag datumcontrole gestart],\"<=\"&J$4)","v":{"v":0,"d":"€ 0.00"}},{"$f":"SUMIFS(GespecificeerdeKosten[Controleer bedrag],GespecificeerdeKosten[G/L-code],OverzichtMaandelijkseOnkosten[[#This Row],[G/L-code]],GespecificeerdeKosten[Factuurdatum],\">=\"&K$3,GespecificeerdeKosten[Factuurdatum],\"<=\"&K$4)+SUMIFS(Anders[Controleer bedrag],Anders[G/L-code],OverzichtMaandelijkseOnkosten[[#This Row],[G/L-code]],Anders[Aanvraag datumcontrole gestart],\">=\"&DATEVALUE(OverzichtMaandelijkseOnkosten[[#Headers],[Augustus]]&\" 1, \"&_JAAR),Anders[Aanvraag datumcontrole gestart],\"<=\"&K$4)","v":{"v":0,"d":"€ 0.00"}},{"$f":"SUMIFS(GespecificeerdeKosten[Controleer bedrag],GespecificeerdeKosten[G/L-code],OverzichtMaandelijkseOnkosten[[#This Row],[G/L-code]],GespecificeerdeKosten[Factuurdatum],\">=\"&L$3,GespecificeerdeKosten[Factuurdatum],\"<=\"&L$4)+SUMIFS(Anders[Controleer bedrag],Anders[G/L-code],OverzichtMaandelijkseOnkosten[[#This Row],[G/L-code]],Anders[Aanvraag datumcontrole gestart],\">=\"&DATEVALUE(OverzichtMaandelijkseOnkosten[[#Headers],[September]]&\" 1, \"&_JAAR),Anders[Aanvraag datumcontrole gestart],\"<=\"&L$4)","v":{"v":0,"d":"€ 0.00"}},{"$f":"SUMIFS(GespecificeerdeKosten[Controleer bedrag],GespecificeerdeKosten[G/L-code],OverzichtMaandelijkseOnkosten[[#This Row],[G/L-code]],GespecificeerdeKosten[Factuurdatum],\">=\"&M$3,GespecificeerdeKosten[Factuurdatum],\"<=\"&M$4)+SUMIFS(Anders[Controleer bedrag],Anders[G/L-code],OverzichtMaandelijkseOnkosten[[#This Row],[G/L-code]],Anders[Aanvraag datumcontrole gestart],\">=\"&DATEVALUE(OverzichtMaandelijkseOnkosten[[#Headers],[Oktober]]&\" 1, \"&_JAAR),Anders[Aanvraag datumcontrole gestart],\"<=\"&M$4)","v":{"v":0,"d":"€ 0.00"}},{"$f":"SUMIFS(GespecificeerdeKosten[Controleer bedrag],GespecificeerdeKosten[G/L-code],OverzichtMaandelijkseOnkosten[[#This Row],[G/L-code]],GespecificeerdeKosten[Factuurdatum],\">=\"&N$3,GespecificeerdeKosten[Factuurdatum],\"<=\"&N$4)+SUMIFS(Anders[Controleer bedrag],Anders[G/L-code],OverzichtMaandelijkseOnkosten[[#This Row],[G/L-code]],Anders[Aanvraag datumcontrole gestart],\">=\"&DATEVALUE(OverzichtMaandelijkseOnkosten[[#Headers],[November]]&\" 1, \"&_JAAR),Anders[Aanvraag datumcontrole gestart],\"<=\"&N$4)","v":{"v":0,"d":"€ 0.00"}},{"$f":"SUMIFS(GespecificeerdeKosten[Controleer bedrag],GespecificeerdeKosten[G/L-code],OverzichtMaandelijkseOnkosten[[#This Row],[G/L-code]],GespecificeerdeKosten[Factuurdatum],\">=\"&O$3,GespecificeerdeKosten[Factuurdatum],\"<=\"&O$4)+SUMIFS(Anders[Controleer bedrag],Anders[G/L-code],OverzichtMaandelijkseOnkosten[[#This Row],[G/L-code]],Anders[Aanvraag datumcontrole gestart],\">=\"&DATEVALUE(OverzichtMaandelijkseOnkosten[[#Headers],[December]]&\" 1, \"&_JAAR),Anders[Aanvraag datumcontrole gestart],\"<=\"&O$4)","v":{"v":0,"d":"€ 0.00"}},{"$f":"SUM(OverzichtMaandelijkseOnkosten[[#This Row],[Januari]:[December]])","v":{"v":0,"d":"€ 0.00"}}]
[null,10000,"Marketing",{"$f":"SUMIFS(GespecificeerdeKosten[Controleer bedrag],GespecificeerdeKosten[G/L-code],OverzichtMaandelijkseOnkosten[[#This Row],[G/L-code]],GespecificeerdeKosten[Factuurdatum],\">=\"&D$3,GespecificeerdeKosten[Factuurdatum],\"<=\"&D$4)+SUMIFS(Anders[Controleer bedrag],Anders[G/L-code],OverzichtMaandelijkseOnkosten[[#This Row],[G/L-code]],Anders[Aanvraag datumcontrole gestart],\">=\"&DATEVALUE(OverzichtMaandelijkseOnkosten[[#Headers],[Januari]]&\" 1, \"&_JAAR),Anders[Aanvraag datumcontrole gestart],\"<=\"&D$4)","v":{"v":0,"d":"€ 0.00"}},{"$f":"SUMIFS(GespecificeerdeKosten[Controleer bedrag],GespecificeerdeKosten[G/L-code],OverzichtMaandelijkseOnkosten[[#This Row],[G/L-code]],GespecificeerdeKosten[Factuurdatum],\">=\"&E$3,GespecificeerdeKosten[Factuurdatum],\"<=\"&E$4)+SUMIFS(Anders[Controleer bedrag],Anders[G/L-code],OverzichtMaandelijkseOnkosten[[#This Row],[G/L-code]],Anders[Aanvraag datumcontrole gestart],\">=\"&DATEVALUE(OverzichtMaandelijkseOnkosten[[#Headers],[Februari]]&\" 1, \"&_JAAR),Anders[Aanvraag datumcontrole gestart],\"<=\"&E$4)","v":{"v":0,"d":"€ 0.00"}},{"$f":"SUMIFS(GespecificeerdeKosten[Controleer bedrag],GespecificeerdeKosten[G/L-code],OverzichtMaandelijkseOnkosten[[#This Row],[G/L-code]],GespecificeerdeKosten[Factuurdatum],\">=\"&F$3,GespecificeerdeKosten[Factuurdatum],\"<=\"&F$4)+SUMIFS(Anders[Controleer bedrag],Anders[G/L-code],OverzichtMaandelijkseOnkosten[[#This Row],[G/L-code]],Anders[Aanvraag datumcontrole gestart],\">=\"&DATEVALUE(OverzichtMaandelijkseOnkosten[[#Headers],[Maart]]&\" 1, \"&_JAAR),Anders[Aanvraag datumcontrole gestart],\"<=\"&F$4)","v":{"v":0,"d":"€ 0.00"}},{"$f":"SUMIFS(GespecificeerdeKosten[Controleer bedrag],GespecificeerdeKosten[G/L-code],OverzichtMaandelijkseOnkosten[[#This Row],[G/L-code]],GespecificeerdeKosten[Factuurdatum],\">=\"&G$3,GespecificeerdeKosten[Factuurdatum],\"<=\"&G$4)+SUMIFS(Anders[Controleer bedrag],Anders[G/L-code],OverzichtMaandelijkseOnkosten[[#This Row],[G/L-code]],Anders[Aanvraag datumcontrole gestart],\">=\"&DATEVALUE(OverzichtMaandelijkseOnkosten[[#Headers],[April]]&\" 1, \"&_JAAR),Anders[Aanvraag datumcontrole gestart],\"<=\"&G$4)","v":{"v":0,"d":"€ 0.00"}},{"$f":"SUMIFS(GespecificeerdeKosten[Controleer bedrag],GespecificeerdeKosten[G/L-code],OverzichtMaandelijkseOnkosten[[#This Row],[G/L-code]],GespecificeerdeKosten[Factuurdatum],\">=\"&H$3,GespecificeerdeKosten[Factuurdatum],\"<=\"&H$4)+SUMIFS(Anders[Controleer bedrag],Anders[G/L-code],OverzichtMaandelijkseOnkosten[[#This Row],[G/L-code]],Anders[Aanvraag datumcontrole gestart],\">=\"&DATEVALUE(OverzichtMaandelijkseOnkosten[[#Headers],[Mei]]&\" 1, \"&_JAAR),Anders[Aanvraag datumcontrole gestart],\"<=\"&H$4)","v":{"v":0,"d":"€ 0.00"}},{"$f":"SUMIFS(GespecificeerdeKosten[Controleer bedrag],GespecificeerdeKosten[G/L-code],OverzichtMaandelijkseOnkosten[[#This Row],[G/L-code]],GespecificeerdeKosten[Factuurdatum],\">=\"&I$3,GespecificeerdeKosten[Factuurdatum],\"<=\"&I$4)+SUMIFS(Anders[Controleer bedrag],Anders[G/L-code],OverzichtMaandelijkseOnkosten[[#This Row],[G/L-code]],Anders[Aanvraag datumcontrole gestart],\">=\"&DATEVALUE(OverzichtMaandelijkseOnkosten[[#Headers],[Juni]]&\" 1, \"&_JAAR),Anders[Aanvraag datumcontrole gestart],\"<=\"&I$4)","v":{"v":0,"d":"€ 0.00"}},{"$f":"SUMIFS(GespecificeerdeKosten[Controleer bedrag],GespecificeerdeKosten[G/L-code],OverzichtMaandelijkseOnkosten[[#This Row],[G/L-code]],GespecificeerdeKosten[Factuurdatum],\">=\"&J$3,GespecificeerdeKosten[Factuurdatum],\"<=\"&J$4)+SUMIFS(Anders[Controleer bedrag],Anders[G/L-code],OverzichtMaandelijkseOnkosten[[#This Row],[G/L-code]],Anders[Aanvraag datumcontrole gestart],\">=\"&DATEVALUE(OverzichtMaandelijkseOnkosten[[#Headers],[Juli]]&\" 1, \"&_JAAR),Anders[Aanvraag datumcontrole gestart],\"<=\"&J$4)","v":{"v":0,"d":"€ 0.00"}},{"$f":"SUMIFS(GespecificeerdeKosten[Controleer bedrag],GespecificeerdeKosten[G/L-code],OverzichtMaandelijkseOnkosten[[#This Row],[G/L-code]],GespecificeerdeKosten[Factuurdatum],\">=\"&K$3,GespecificeerdeKosten[Factuurdatum],\"<=\"&K$4)+SUMIFS(Anders[Controleer bedrag],Anders[G/L-code],OverzichtMaandelijkseOnkosten[[#This Row],[G/L-code]],Anders[Aanvraag datumcontrole gestart],\">=\"&DATEVALUE(OverzichtMaandelijkseOnkosten[[#Headers],[Augustus]]&\" 1, \"&_JAAR),Anders[Aanvraag datumcontrole gestart],\"<=\"&K$4)","v":{"v":0,"d":"€ 0.00"}},{"$f":"SUMIFS(GespecificeerdeKosten[Controleer bedrag],GespecificeerdeKosten[G/L-code],OverzichtMaandelijkseOnkosten[[#This Row],[G/L-code]],GespecificeerdeKosten[Factuurdatum],\">=\"&L$3,GespecificeerdeKosten[Factuurdatum],\"<=\"&L$4)+SUMIFS(Anders[Controleer bedrag],Anders[G/L-code],OverzichtMaandelijkseOnkosten[[#This Row],[G/L-code]],Anders[Aanvraag datumcontrole gestart],\">=\"&DATEVALUE(OverzichtMaandelijkseOnkosten[[#Headers],[September]]&\" 1, \"&_JAAR),Anders[Aanvraag datumcontrole gestart],\"<=\"&L$4)","v":{"v":0,"d":"€ 0.00"}},{"$f":"SUMIFS(GespecificeerdeKosten[Controleer bedrag],GespecificeerdeKosten[G/L-code],OverzichtMaandelijkseOnkosten[[#This Row],[G/L-code]],GespecificeerdeKosten[Factuurdatum],\">=\"&M$3,GespecificeerdeKosten[Factuurdatum],\"<=\"&M$4)+SUMIFS(Anders[Controleer bedrag],Anders[G/L-code],OverzichtMaandelijkseOnkosten[[#This Row],[G/L-code]],Anders[Aanvraag datumcontrole gestart],\">=\"&DATEVALUE(OverzichtMaandelijkseOnkosten[[#Headers],[Oktober]]&\" 1, \"&_JAAR),Anders[Aanvraag datumcontrole gestart],\"<=\"&M$4)","v":{"v":0,"d":"€ 0.00"}},{"$f":"SUMIFS(GespecificeerdeKosten[Controleer bedrag],GespecificeerdeKosten[G/L-code],OverzichtMaandelijkseOnkosten[[#This Row],[G/L-code]],GespecificeerdeKosten[Factuurdatum],\">=\"&N$3,GespecificeerdeKosten[Factuurdatum],\"<=\"&N$4)+SUMIFS(Anders[Controleer bedrag],Anders[G/L-code],OverzichtMaandelijkseOnkosten[[#This Row],[G/L-code]],Anders[Aanvraag datumcontrole gestart],\">=\"&DATEVALUE(OverzichtMaandelijkseOnkosten[[#Headers],[November]]&\" 1, \"&_JAAR),Anders[Aanvraag datumcontrole gestart],\"<=\"&N$4)","v":{"v":0,"d":"€ 0.00"}},{"$f":"SUMIFS(GespecificeerdeKosten[Controleer bedrag],GespecificeerdeKosten[G/L-code],OverzichtMaandelijkseOnkosten[[#This Row],[G/L-code]],GespecificeerdeKosten[Factuurdatum],\">=\"&O$3,GespecificeerdeKosten[Factuurdatum],\"<=\"&O$4)+SUMIFS(Anders[Controleer bedrag],Anders[G/L-code],OverzichtMaandelijkseOnkosten[[#This Row],[G/L-code]],Anders[Aanvraag datumcontrole gestart],\">=\"&DATEVALUE(OverzichtMaandelijkseOnkosten[[#Headers],[December]]&\" 1, \"&_JAAR),Anders[Aanvraag datumcontrole gestart],\"<=\"&O$4)","v":{"v":0,"d":"€ 0.00"}},{"$f":"SUM(OverzichtMaandelijkseOnkosten[[#This Row],[Januari]:[December]])","v":{"v":0,"d":"€ 0.00"}}]
[null,11000,"Liefdadigheid",{"$f":"SUMIFS(GespecificeerdeKosten[Controleer bedrag],GespecificeerdeKosten[G/L-code],OverzichtMaandelijkseOnkosten[[#This Row],[G/L-code]],GespecificeerdeKosten[Factuurdatum],\">=\"&D$3,GespecificeerdeKosten[Factuurdatum],\"<=\"&D$4)+SUMIFS(Anders[Controleer bedrag],Anders[G/L-code],OverzichtMaandelijkseOnkosten[[#This Row],[G/L-code]],Anders[Aanvraag datumcontrole gestart],\">=\"&DATEVALUE(OverzichtMaandelijkseOnkosten[[#Headers],[Januari]]&\" 1, \"&_JAAR),Anders[Aanvraag datumcontrole gestart],\"<=\"&D$4)","v":{"v":0,"d":"€ 0.00"}},{"$f":"SUMIFS(GespecificeerdeKosten[Controleer bedrag],GespecificeerdeKosten[G/L-code],OverzichtMaandelijkseOnkosten[[#This Row],[G/L-code]],GespecificeerdeKosten[Factuurdatum],\">=\"&E$3,GespecificeerdeKosten[Factuurdatum],\"<=\"&E$4)+SUMIFS(Anders[Controleer bedrag],Anders[G/L-code],OverzichtMaandelijkseOnkosten[[#This Row],[G/L-code]],Anders[Aanvraag datumcontrole gestart],\">=\"&DATEVALUE(OverzichtMaandelijkseOnkosten[[#Headers],[Februari]]&\" 1, \"&_JAAR),Anders[Aanvraag datumcontrole gestart],\"<=\"&E$4)","v":{"v":0,"d":"€ 0.00"}},{"$f":"SUMIFS(GespecificeerdeKosten[Controleer bedrag],GespecificeerdeKosten[G/L-code],OverzichtMaandelijkseOnkosten[[#This Row],[G/L-code]],GespecificeerdeKosten[Factuurdatum],\">=\"&F$3,GespecificeerdeKosten[Factuurdatum],\"<=\"&F$4)+SUMIFS(Anders[Controleer bedrag],Anders[G/L-code],OverzichtMaandelijkseOnkosten[[#This Row],[G/L-code]],Anders[Aanvraag datumcontrole gestart],\">=\"&DATEVALUE(OverzichtMaandelijkseOnkosten[[#Headers],[Maart]]&\" 1, \"&_JAAR),Anders[Aanvraag datumcontrole gestart],\"<=\"&F$4)","v":{"v":0,"d":"€ 0.00"}},{"$f":"SUMIFS(GespecificeerdeKosten[Controleer bedrag],GespecificeerdeKosten[G/L-code],OverzichtMaandelijkseOnkosten[[#This Row],[G/L-code]],GespecificeerdeKosten[Factuurdatum],\">=\"&G$3,GespecificeerdeKosten[Factuurdatum],\"<=\"&G$4)+SUMIFS(Anders[Controleer bedrag],Anders[G/L-code],OverzichtMaandelijkseOnkosten[[#This Row],[G/L-code]],Anders[Aanvraag datumcontrole gestart],\">=\"&DATEVALUE(OverzichtMaandelijkseOnkosten[[#Headers],[April]]&\" 1, \"&_JAAR),Anders[Aanvraag datumcontrole gestart],\"<=\"&G$4)","v":{"v":0,"d":"€ 0.00"}},{"$f":"SUMIFS(GespecificeerdeKosten[Controleer bedrag],GespecificeerdeKosten[G/L-code],OverzichtMaandelijkseOnkosten[[#This Row],[G/L-code]],GespecificeerdeKosten[Factuurdatum],\">=\"&H$3,GespecificeerdeKosten[Factuurdatum],\"<=\"&H$4)+SUMIFS(Anders[Controleer bedrag],Anders[G/L-code],OverzichtMaandelijkseOnkosten[[#This Row],[G/L-code]],Anders[Aanvraag datumcontrole gestart],\">=\"&DATEVALUE(OverzichtMaandelijkseOnkosten[[#Headers],[Mei]]&\" 1, \"&_JAAR),Anders[Aanvraag datumcontrole gestart],\"<=\"&H$4)","v":{"v":0,"d":"€ 0.00"}},{"$f":"SUMIFS(GespecificeerdeKosten[Controleer bedrag],GespecificeerdeKosten[G/L-code],OverzichtMaandelijkseOnkosten[[#This Row],[G/L-code]],GespecificeerdeKosten[Factuurdatum],\">=\"&I$3,GespecificeerdeKosten[Factuurdatum],\"<=\"&I$4)+SUMIFS(Anders[Controleer bedrag],Anders[G/L-code],OverzichtMaandelijkseOnkosten[[#This Row],[G/L-code]],Anders[Aanvraag datumcontrole gestart],\">=\"&DATEVALUE(OverzichtMaandelijkseOnkosten[[#Headers],[Juni]]&\" 1, \"&_JAAR),Anders[Aanvraag datumcontrole gestart],\"<=\"&I$4)","v":{"v":0,"d":"€ 0.00"}},{"$f":"SUMIFS(GespecificeerdeKosten[Controleer bedrag],GespecificeerdeKosten[G/L-code],OverzichtMaandelijkseOnkosten[[#This Row],[G/L-code]],GespecificeerdeKosten[Factuurdatum],\">=\"&J$3,GespecificeerdeKosten[Factuurdatum],\"<=\"&J$4)+SUMIFS(Anders[Controleer bedrag],Anders[G/L-code],OverzichtMaandelijkseOnkosten[[#This Row],[G/L-code]],Anders[Aanvraag datumcontrole gestart],\">=\"&DATEVALUE(OverzichtMaandelijkseOnkosten[[#Headers],[Juli]]&\" 1, \"&_JAAR),Anders[Aanvraag datumcontrole gestart],\"<=\"&J$4)","v":{"v":0,"d":"€ 0.00"}},{"$f":"SUMIFS(GespecificeerdeKosten[Controleer bedrag],GespecificeerdeKosten[G/L-code],OverzichtMaandelijkseOnkosten[[#This Row],[G/L-code]],GespecificeerdeKosten[Factuurdatum],\">=\"&K$3,GespecificeerdeKosten[Factuurdatum],\"<=\"&K$4)+SUMIFS(Anders[Controleer bedrag],Anders[G/L-code],OverzichtMaandelijkseOnkosten[[#This Row],[G/L-code]],Anders[Aanvraag datumcontrole gestart],\">=\"&DATEVALUE(OverzichtMaandelijkseOnkosten[[#Headers],[Augustus]]&\" 1, \"&_JAAR),Anders[Aanvraag datumcontrole gestart],\"<=\"&K$4)","v":{"v":0,"d":"€ 0.00"}},{"$f":"SUMIFS(GespecificeerdeKosten[Controleer bedrag],GespecificeerdeKosten[G/L-code],OverzichtMaandelijkseOnkosten[[#This Row],[G/L-code]],GespecificeerdeKosten[Factuurdatum],\">=\"&L$3,GespecificeerdeKosten[Factuurdatum],\"<=\"&L$4)+SUMIFS(Anders[Controleer bedrag],Anders[G/L-code],OverzichtMaandelijkseOnkosten[[#This Row],[G/L-code]],Anders[Aanvraag datumcontrole gestart],\">=\"&DATEVALUE(OverzichtMaandelijkseOnkosten[[#Headers],[September]]&\" 1, \"&_JAAR),Anders[Aanvraag datumcontrole gestart],\"<=\"&L$4)","v":{"v":0,"d":"€ 0.00"}},{"$f":"SUMIFS(GespecificeerdeKosten[Controleer bedrag],GespecificeerdeKosten[G/L-code],OverzichtMaandelijkseOnkosten[[#This Row],[G/L-code]],GespecificeerdeKosten[Factuurdatum],\">=\"&M$3,GespecificeerdeKosten[Factuurdatum],\"<=\"&M$4)+SUMIFS(Anders[Controleer bedrag],Anders[G/L-code],OverzichtMaandelijkseOnkosten[[#This Row],[G/L-code]],Anders[Aanvraag datumcontrole gestart],\">=\"&DATEVALUE(OverzichtMaandelijkseOnkosten[[#Headers],[Oktober]]&\" 1, \"&_JAAR),Anders[Aanvraag datumcontrole gestart],\"<=\"&M$4)","v":{"v":0,"d":"€ 0.00"}},{"$f":"SUMIFS(GespecificeerdeKosten[Controleer bedrag],GespecificeerdeKosten[G/L-code],OverzichtMaandelijkseOnkosten[[#This Row],[G/L-code]],GespecificeerdeKosten[Factuurdatum],\">=\"&N$3,GespecificeerdeKosten[Factuurdatum],\"<=\"&N$4)+SUMIFS(Anders[Controleer bedrag],Anders[G/L-code],OverzichtMaandelijkseOnkosten[[#This Row],[G/L-code]],Anders[Aanvraag datumcontrole gestart],\">=\"&DATEVALUE(OverzichtMaandelijkseOnkosten[[#Headers],[November]]&\" 1, \"&_JAAR),Anders[Aanvraag datumcontrole gestart],\"<=\"&N$4)","v":{"v":0,"d":"€ 0.00"}},{"$f":"SUMIFS(GespecificeerdeKosten[Controleer bedrag],GespecificeerdeKosten[G/L-code],OverzichtMaandelijkseOnkosten[[#This Row],[G/L-code]],GespecificeerdeKosten[Factuurdatum],\">=\"&O$3,GespecificeerdeKosten[Factuurdatum],\"<=\"&O$4)+SUMIFS(Anders[Controleer bedrag],Anders[G/L-code],OverzichtMaandelijkseOnkosten[[#This Row],[G/L-code]],Anders[Aanvraag datumcontrole gestart],\">=\"&DATEVALUE(OverzichtMaandelijkseOnkosten[[#Headers],[December]]&\" 1, \"&_JAAR),Anders[Aanvraag datumcontrole gestart],\"<=\"&O$4)","v":{"v":0,"d":"€ 0.00"}},{"$f":"SUM(OverzichtMaandelijkseOnkosten[[#This Row],[Januari]:[December]])","v":{"v":0,"d":"€ 0.00"}}]
[null,12000,"Sponsoring",{"$f":"SUMIFS(GespecificeerdeKosten[Controleer bedrag],GespecificeerdeKosten[G/L-code],OverzichtMaandelijkseOnkosten[[#This Row],[G/L-code]],GespecificeerdeKosten[Factuurdatum],\">=\"&D$3,GespecificeerdeKosten[Factuurdatum],\"<=\"&D$4)+SUMIFS(Anders[Controleer bedrag],Anders[G/L-code],OverzichtMaandelijkseOnkosten[[#This Row],[G/L-code]],Anders[Aanvraag datumcontrole gestart],\">=\"&DATEVALUE(OverzichtMaandelijkseOnkosten[[#Headers],[Januari]]&\" 1, \"&_JAAR),Anders[Aanvraag datumcontrole gestart],\"<=\"&D$4)","v":{"v":0,"d":"€ 0.00"}},{"$f":"SUMIFS(GespecificeerdeKosten[Controleer bedrag],GespecificeerdeKosten[G/L-code],OverzichtMaandelijkseOnkosten[[#This Row],[G/L-code]],GespecificeerdeKosten[Factuurdatum],\">=\"&E$3,GespecificeerdeKosten[Factuurdatum],\"<=\"&E$4)+SUMIFS(Anders[Controleer bedrag],Anders[G/L-code],OverzichtMaandelijkseOnkosten[[#This Row],[G/L-code]],Anders[Aanvraag datumcontrole gestart],\">=\"&DATEVALUE(OverzichtMaandelijkseOnkosten[[#Headers],[Februari]]&\" 1, \"&_JAAR),Anders[Aanvraag datumcontrole gestart],\"<=\"&E$4)","v":{"v":0,"d":"€ 0.00"}},{"$f":"SUMIFS(GespecificeerdeKosten[Controleer bedrag],GespecificeerdeKosten[G/L-code],OverzichtMaandelijkseOnkosten[[#This Row],[G/L-code]],GespecificeerdeKosten[Factuurdatum],\">=\"&F$3,GespecificeerdeKosten[Factuurdatum],\"<=\"&F$4)+SUMIFS(Anders[Controleer bedrag],Anders[G/L-code],OverzichtMaandelijkseOnkosten[[#This Row],[G/L-code]],Anders[Aanvraag datumcontrole gestart],\">=\"&DATEVALUE(OverzichtMaandelijkseOnkosten[[#Headers],[Maart]]&\" 1, \"&_JAAR),Anders[Aanvraag datumcontrole gestart],\"<=\"&F$4)","v":{"v":0,"d":"€ 0.00"}},{"$f":"SUMIFS(GespecificeerdeKosten[Controleer bedrag],GespecificeerdeKosten[G/L-code],OverzichtMaandelijkseOnkosten[[#This Row],[G/L-code]],GespecificeerdeKosten[Factuurdatum],\">=\"&G$3,GespecificeerdeKosten[Factuurdatum],\"<=\"&G$4)+SUMIFS(Anders[Controleer bedrag],Anders[G/L-code],OverzichtMaandelijkseOnkosten[[#This Row],[G/L-code]],Anders[Aanvraag datumcontrole gestart],\">=\"&DATEVALUE(OverzichtMaandelijkseOnkosten[[#Headers],[April]]&\" 1, \"&_JAAR),Anders[Aanvraag datumcontrole gestart],\"<=\"&G$4)","v":{"v":0,"d":"€ 0.00"}},{"$f":"SUMIFS(GespecificeerdeKosten[Controleer bedrag],GespecificeerdeKosten[G/L-code],OverzichtMaandelijkseOnkosten[[#This Row],[G/L-code]],GespecificeerdeKosten[Factuurdatum],\">=\"&H$3,GespecificeerdeKosten[Factuurdatum],\"<=\"&H$4)+SUMIFS(Anders[Controleer bedrag],Anders[G/L-code],OverzichtMaandelijkseOnkosten[[#This Row],[G/L-code]],Anders[Aanvraag datumcontrole gestart],\">=\"&DATEVALUE(OverzichtMaandelijkseOnkosten[[#Headers],[Mei]]&\" 1, \"&_JAAR),Anders[Aanvraag datumcontrole gestart],\"<=\"&H$4)","v":{"v":0,"d":"€ 0.00"}},{"$f":"SUMIFS(GespecificeerdeKosten[Controleer bedrag],GespecificeerdeKosten[G/L-code],OverzichtMaandelijkseOnkosten[[#This Row],[G/L-code]],GespecificeerdeKosten[Factuurdatum],\">=\"&I$3,GespecificeerdeKosten[Factuurdatum],\"<=\"&I$4)+SUMIFS(Anders[Controleer bedrag],Anders[G/L-code],OverzichtMaandelijkseOnkosten[[#This Row],[G/L-code]],Anders[Aanvraag datumcontrole gestart],\">=\"&DATEVALUE(OverzichtMaandelijkseOnkosten[[#Headers],[Juni]]&\" 1, \"&_JAAR),Anders[Aanvraag datumcontrole gestart],\"<=\"&I$4)","v":{"v":0,"d":"€ 0.00"}},{"$f":"SUMIFS(GespecificeerdeKosten[Controleer bedrag],GespecificeerdeKosten[G/L-code],OverzichtMaandelijkseOnkosten[[#This Row],[G/L-code]],GespecificeerdeKosten[Factuurdatum],\">=\"&J$3,GespecificeerdeKosten[Factuurdatum],\"<=\"&J$4)+SUMIFS(Anders[Controleer bedrag],Anders[G/L-code],OverzichtMaandelijkseOnkosten[[#This Row],[G/L-code]],Anders[Aanvraag datumcontrole gestart],\">=\"&DATEVALUE(OverzichtMaandelijkseOnkosten[[#Headers],[Juli]]&\" 1, \"&_JAAR),Anders[Aanvraag datumcontrole gestart],\"<=\"&J$4)","v":{"v":0,"d":"€ 0.00"}},{"$f":"SUMIFS(GespecificeerdeKosten[Controleer bedrag],GespecificeerdeKosten[G/L-code],OverzichtMaandelijkseOnkosten[[#This Row],[G/L-code]],GespecificeerdeKosten[Factuurdatum],\">=\"&K$3,GespecificeerdeKosten[Factuurdatum],\"<=\"&K$4)+SUMIFS(Anders[Controleer bedrag],Anders[G/L-code],OverzichtMaandelijkseOnkosten[[#This Row],[G/L-code]],Anders[Aanvraag datumcontrole gestart],\">=\"&DATEVALUE(OverzichtMaandelijkseOnkosten[[#Headers],[Augustus]]&\" 1, \"&_JAAR),Anders[Aanvraag datumcontrole gestart],\"<=\"&K$4)","v":{"v":0,"d":"€ 0.00"}},{"$f":"SUMIFS(GespecificeerdeKosten[Controleer bedrag],GespecificeerdeKosten[G/L-code],OverzichtMaandelijkseOnkosten[[#This Row],[G/L-code]],GespecificeerdeKosten[Factuurdatum],\">=\"&L$3,GespecificeerdeKosten[Factuurdatum],\"<=\"&L$4)+SUMIFS(Anders[Controleer bedrag],Anders[G/L-code],OverzichtMaandelijkseOnkosten[[#This Row],[G/L-code]],Anders[Aanvraag datumcontrole gestart],\">=\"&DATEVALUE(OverzichtMaandelijkseOnkosten[[#Headers],[September]]&\" 1, \"&_JAAR),Anders[Aanvraag datumcontrole gestart],\"<=\"&L$4)","v":{"v":0,"d":"€ 0.00"}},{"$f":"SUMIFS(GespecificeerdeKosten[Controleer bedrag],GespecificeerdeKosten[G/L-code],OverzichtMaandelijkseOnkosten[[#This Row],[G/L-code]],GespecificeerdeKosten[Factuurdatum],\">=\"&M$3,GespecificeerdeKosten[Factuurdatum],\"<=\"&M$4)+SUMIFS(Anders[Controleer bedrag],Anders[G/L-code],OverzichtMaandelijkseOnkosten[[#This Row],[G/L-code]],Anders[Aanvraag datumcontrole gestart],\">=\"&DATEVALUE(OverzichtMaandelijkseOnkosten[[#Headers],[Oktober]]&\" 1, \"&_JAAR),Anders[Aanvraag datumcontrole gestart],\"<=\"&M$4)","v":{"v":0,"d":"€ 0.00"}},{"$f":"SUMIFS(GespecificeerdeKosten[Controleer bedrag],GespecificeerdeKosten[G/L-code],OverzichtMaandelijkseOnkosten[[#This Row],[G/L-code]],GespecificeerdeKosten[Factuurdatum],\">=\"&N$3,GespecificeerdeKosten[Factuurdatum],\"<=\"&N$4)+SUMIFS(Anders[Controleer bedrag],Anders[G/L-code],OverzichtMaandelijkseOnkosten[[#This Row],[G/L-code]],Anders[Aanvraag datumcontrole gestart],\">=\"&DATEVALUE(OverzichtMaandelijkseOnkosten[[#Headers],[November]]&\" 1, \"&_JAAR),Anders[Aanvraag datumcontrole gestart],\"<=\"&N$4)","v":{"v":0,"d":"€ 0.00"}},{"$f":"SUMIFS(GespecificeerdeKosten[Controleer bedrag],GespecificeerdeKosten[G/L-code],OverzichtMaandelijkseOnkosten[[#This Row],[G/L-code]],GespecificeerdeKosten[Factuurdatum],\">=\"&O$3,GespecificeerdeKosten[Factuurdatum],\"<=\"&O$4)+SUMIFS(Anders[Controleer bedrag],Anders[G/L-code],OverzichtMaandelijkseOnkosten[[#This Row],[G/L-code]],Anders[Aanvraag datumcontrole gestart],\">=\"&DATEVALUE(OverzichtMaandelijkseOnkosten[[#Headers],[December]]&\" 1, \"&_JAAR),Anders[Aanvraag datumcontrole gestart],\"<=\"&O$4)","v":{"v":0,"d":"€ 0.00"}},{"$f":"SUM(OverzichtMaandelijkseOnkosten[[#This Row],[Januari]:[December]])","v":{"v":0,"d":"€ 0.00"}}]
[null,"Totaal",null,{"$f":"SUBTOTAL(109,OverzichtMaandelijkseOnkosten[Januari])","v":{"v":0,"d":"€ 0.00"}},{"$f":"SUBTOTAL(109,OverzichtMaandelijkseOnkosten[Februari])","v":{"v":0,"d":"€ 0.00"}},{"$f":"SUBTOTAL(109,OverzichtMaandelijkseOnkosten[Maart])","v":{"v":0,"d":"€ 0.00"}},{"$f":"SUBTOTAL(109,OverzichtMaandelijkseOnkosten[April])","v":{"v":0,"d":"€ 0.00"}},{"$f":"SUBTOTAL(109,OverzichtMaandelijkseOnkosten[Mei])","v":{"v":0,"d":"€ 0.00"}},{"$f":"SUBTOTAL(109,OverzichtMaandelijkseOnkosten[Juni])","v":{"v":0,"d":"€ 0.00"}},{"$f":"SUBTOTAL(109,OverzichtMaandelijkseOnkosten[Juli])","v":{"v":0,"d":"€ 0.00"}},{"$f":"SUBTOTAL(109,OverzichtMaandelijkseOnkosten[Augustus])","v":{"v":0,"d":"€ 0.00"}},{"$f":"SUBTOTAL(109,OverzichtMaandelijkseOnkosten[September])","v":{"v":0,"d":"€ 0.00"}},{"$f":"SUBTOTAL(109,OverzichtMaandelijkseOnkosten[Oktober])","v":{"v":0,"d":"€ 0.00"}},{"$f":"SUBTOTAL(109,OverzichtMaandelijkseOnkosten[November])","v":{"v":0,"d":"€ 0.00"}},{"$f":"SUBTOTAL(109,OverzichtMaandelijkseOnkosten[December])","v":{"v":0,"d":"€ 0.00"}},{"$f":"SUBTOTAL(109,OverzichtMaandelijkseOnkosten[Totaal])","v":{"v":0,"d":"€ 0.00"}}]

{"sheet":"GESPECIFICEERDE KOSTEN","index":2,"n_rows":6,"n_cols":10,"rows_kept":6,"merged":[[1,1,1,9],[2,1,2,5],[2,6,2,9]]}
[null,"OVERZICHT MAANDELIJKSE ONKOSTEN","LIEFDADIGHEID EN SPONSORS"]
[null,"GESPECIFICEERDE KOSTEN"]
[null,"Slicer om gegevens te filteren op Aangevraagd door staat in deze cel en de slicer om gegevens te filteren op Begunstigde staat in de cel rechts.",{"$nulls":4},"De slicer om gegevens te filteren op Begunstigde staat in deze cel."]
[null,"G/L-code","Factuurdatum","Factuurnr.","Aangevraagd door","Controleer bedrag","Begunstigde","Selecteer gebruik","Distributiewijze","Bestandsdatum"]
[null,1000,"Datum",100,"Andy Teal",{"v":750.75,"d":"€ 750.75"},"Intertelecom ","E-mailprogramma","E-mail","Datum"]
[null,7000,"Datum",101,"Robert Walters",{"v":2500,"d":"€ 2,500.00"},"A. Datum bedrijf ","2 pc 's","Krediet","Datum"]

{"sheet":"LIEFDADIGHEID EN SPONSORS","index":3,"n_rows":6,"n_cols":12,"rows_kept":6,"merged":[[1,1,1,11],[2,1,2,5],[2,6,2,11]]}
[null,"GESPECIFICEERDE KOSTEN"]
[null,"LIEFDADIGHEID EN SPONSORS"]
[null,"Slicer om gegevens te filteren op Aangevraagd door staat in deze cel en de slicer om gegevens te filteren op Begunstigde staat in de cel rechts.",{"$nulls":4},"De slicer om gegevens te filteren op Begunstigde staat in deze cel."]
[null,"G/L-code","Aanvraag datumcontrole gestart","Aangevraagd door","Controleer bedrag","Bijdrage vorig jaar","Begunstigde","Gebruikt voor","Afgetekend door","Categorie","Distributiewijze","Bestandsdatum"]
[null,12000,"Datum","Susan W. Eaton",{"v":1000,"d":"€ 1,000.00"},{"v":12,"d":"€ 12.00"},"De kunstacademie ","Beurzen","Kim Ralls","Kunst","Controleren","Datum"]
[null,11000,"Datum","Susan W. Eaton",{"v":2500,"d":"€ 2,500.00"},{"v":0,"d":"€ 0.00"},"WingTip Toys ","Community","Kathie Flood","Community","Controleren","Datum"]